{"text_format":"1","workbook":"xlsx","n_sheets":2,"sheets":["Sheet2","Наша база"],"not_rendered":{"charts":0,"images":0,"macros":1,"external_links":0,"defined_names":1,"comments":0,"pivot_tables":0},"unopened":[],"bounds":{"document_bytes":16777216,"sheet_cells":100000,"rows_first":2000,"rows_last":500,"rows_between":2000,"halvings":0,"cell_chars":16384,"cell_head_chars":4096},"cells_cut":0,"cells_raw":0,"read":"whole","date_system":"1900"}

{"sheet":"Sheet2","index":0,"n_rows":22,"n_cols":7,"rows_kept":22,"cut":false,"hidden":false,"merged":[[0,0,0,1],[0,2,0,6]]}
["ИСКОМЫЕ ЗНАЧЕНИЯ",null,"РЕЗУЛЬТАТ"]
["Ниаменование","Адрес","строка","стравнение","Код в нашей базе","Наименование в нашей базе","Адрес в нашей базе"]
["ООО \"ЛЕКА-ФАРМ\"","Санкт-Петербург г, Чайковского ул, д.50",{"$f":" FindBestMatchTxt(B3,'Наша база'!$C$2:$C$529, 100%)","v":357},{"$f":" TextSimilarity(B3, G3, , 1)","v":1},{"$f":" IF( C3 > 0, INDEX('Наша база'!$A$2:$A$529, C3), \"нет кода\" )","v":"20259"},{"$f":" IF( C3 > 0, INDEX('Наша база'!$B$2:$B$529, C3), \"нет\" )","v":"ООО \"Эфа\" г. Санкт-Петербург"},{"$f":" IF( C3 > 0, INDEX('Наша база'!$C$2:$C$529, C3), \"нет договора\" )","v":"191028, г. Санкт-Петербург, ул. Чайковского, д.25"}]
["ООО \"ЛЕКА-ФАРМ\"","197183, Санкт-Петербург г, Савушкина ул, д.128",{"$f":" FindBestMatchTxt(B4,'Наша база'!$C$2:$C$529, 100%)","v":91},{"$f":" TextSimilarity(B4, G4, , 1)","v":1},{"$f":" IF( C4 > 0, INDEX('Наша база'!$A$2:$A$529, C4), \"нет кода\" )","v":"2077"},{"$f":" IF( C4 > 0, INDEX('Наша база'!$B$2:$B$529, C4), \"нет\" )","v":"ООО\"Стома-2\" г. Санкт-Петербург"},{"$f":" IF( C4 > 0, INDEX('Наша база'!$C$2:$C$529, C4), \"нет договора\" )","v":"198320, г. Санкт-Петербург, ул. Савушкина, д.135"}]
["ООО \"ЛЕКА-ФАРМ\"","197227, Санкт-Петербург г, Гаккелевская ул, д.33А, корп.1",{"$f":" FindBestMatchTxt(B5,'Наша база'!$C$2:$C$529, 100%)","v":0},9.5238095238095233E-2,{"$f":" IF( C5 > 0, INDEX('Наша база'!$A$2:$A$529, C5), \"нет кода\" )","v":"нет кода"},{"$f":" IF( C5 > 0, INDEX('Наша база'!$B$2:$B$529, C5), \"нет\" )","v":"нет"},{"$f":" IF( C5 > 0, INDEX('Наша база'!$C$2:$C$529, C5), \"нет договора\" )","v":"нет договора"}]
["ООО \"ЛАБОРАТОРИЯ ЗДОРОВЬЯ\" ДВАДЦАТЬ ПЕРВЫЙ ВЕК\"","194044, Санкт-Петербург г, Сампсониевский Б. пр-кт, д.45",{"$f":" FindBestMatchTxt(B6,'Наша база'!$C$2:$C$529, 100%)","v":253},1,{"$f":" IF( C6 > 0, INDEX('Наша база'!$A$2:$A$529, C6), \"нет кода\" )","v":"78-20366"},{"$f":" IF( C6 > 0, INDEX('Наша база'!$B$2:$B$529, C6), \"нет\" )","v":"ООО \"Лаборатория здоровья \"ХХ I век\""},{"$f":" IF( C6 > 0, INDEX('Наша база'!$C$2:$C$529, C6), \"нет договора\" )","v":"194044, г. Санкт-Петербург, Сампсониевский Б. пр-кт., д.45"}]
["ООО \"БалтЗдрав\"","198095, Санкт-Петербург г, Маршала Говорова ул, д.37",{"$f":" FindBestMatchTxt(B7,'Наша база'!$C$2:$C$529, 100%)","v":311},1,{"$f":" IF( C7 > 0, INDEX('Наша база'!$A$2:$A$529, C7), \"нет кода\" )","v":"20391"},{"$f":" IF( C7 > 0, INDEX('Наша база'!$B$2:$B$529, C7), \"нет\" )","v":"ДОГОВОР ЗАКРЫТ  - ООО \"БалтЗдрав\" г. Санкт-Петербург"},{"$f":" IF( C7 > 0, INDEX('Наша база'!$C$2:$C$529, C7), \"нет договора\" )","v":"097022, г. Санкт-Петербург, ул. Маршала Говорова, д.37"}]
["ООО \"БалтЗдрав на Говорова\"","198095, Санкт-Петербург г, Маршала Говорова ул, д.37, корп.2",{"$f":" FindBestMatchTxt(B8,'Наша база'!$C$2:$C$529, 100%)","v":347},1,{"$f":" IF( C8 > 0, INDEX('Наша база'!$A$2:$A$529, C8), \"нет кода\" )","v":"20127"},{"$f":" IF( C8 > 0, INDEX('Наша база'!$B$2:$B$529, C8), \"нет\" )","v":"ООО \"БалтЗдрав на Говорова\""},{"$f":" IF( C8 > 0, INDEX('Наша база'!$C$2:$C$529, C8), \"нет договора\" )","v":"191028, г. Санкт-Петербург, ул. Маршала Говорова, д.37, корп 2"}]
["ООО \"БалтЗдрав на Дыбенко\"","193232, Санкт-Петербург г, Дыбенко ул, д.25, корп.1",{"$f":" FindBestMatchTxt(B9,'Наша база'!$C$2:$C$529, 100%)","v":346},1,{"$f":" IF( C9 > 0, INDEX('Наша база'!$A$2:$A$529, C9), \"нет кода\" )","v":"20126"},{"$f":" IF( C9 > 0, INDEX('Наша база'!$B$2:$B$529, C9), \"нет\" )","v":"ООО \"БалтЗдрав на Дыбенко\" (г. Санкт-Петербург)"},{"$f":" IF( C9 > 0, INDEX('Наша база'!$C$2:$C$529, C9), \"нет договора\" )","v":"197762, г. Санкт-Петербург, ул. Дыбенко, д.25, корп.1"}]
["УЧРЕЖДЕНИЕ РОССИЙСКОЙ АКАДЕМИИ НАУК \"ПОЛИКЛИНИКА № 1 РАН\"","199034, Санкт-Петербург г, Университетская наб, д.5",{"$f":" FindBestMatchTxt(B10,'Наша база'!$C$2:$C$529, 100%)","v":312},1,{"$f":" IF( C10 > 0, INDEX('Наша база'!$A$2:$A$529, C10), \"нет кода\" )","v":"20088"},{"$f":" IF( C10 > 0, INDEX('Наша база'!$B$2:$B$529, C10), \"нет\" )","v":"Поликлиника №1 РАН (г.Санкт-Петербург)"},{"$f":" IF( C10 > 0, INDEX('Наша база'!$C$2:$C$529, C10), \"нет договора\" )","v":"199034, г. Санкт-Петербург, Университетская наб., д.5"}]
["ООО \"МЦ \"ОЛМЕД\"","191036, Санкт-Петербург г, Советская 5-я ул, д.23",{"$f":" FindBestMatchTxt(B11,'Наша база'!$C$2:$C$529, 100%)","v":15},1,{"$f":" IF( C11 > 0, INDEX('Наша база'!$A$2:$A$529, C11), \"нет кода\" )","v":"2029"},{"$f":" IF( C11 > 0, INDEX('Наша база'!$B$2:$B$529, C11), \"нет\" )","v":"ОУ \"ЛДЦ  МИБС\" г. Санкт-Петербург"},{"$f":" IF( C11 > 0, INDEX('Наша база'!$C$2:$C$529, C11), \"нет договора\" )","v":"191144, г. Санкт-Петербург, ул. Советская 6-я, д.24-26"}]
["ООО \"ПОЛИКЛИНИКА АЛЕКСАНДРОВСКОГО ЗАВОДА\"","192171, Санкт-Петербург г, Дудко ул, д.8",{"$f":" FindBestMatchTxt(B12,'Наша база'!$C$2:$C$529, 100%)","v":0},6.9767441860465115E-2,{"$f":" IF( C12 > 0, INDEX('Наша база'!$A$2:$A$529, C12), \"нет кода\" )","v":"нет кода"},{"$f":" IF( C12 > 0, INDEX('Наша база'!$B$2:$B$529, C12), \"нет\" )","v":"нет"},{"$f":" IF( C12 > 0, INDEX('Наша база'!$C$2:$C$529, C12), \"нет договора\" )","v":"нет договора"}]
["ООО \"МЕДСЕРВИС\" (МЦ АПЕЛЬСИН)","190020, Санкт-Петербург г, Старо-Петергофский пр-кт, д.39а",{"$f":" FindBestMatchTxt(B13,'Наша база'!$C$2:$C$529, 100%)","v":0},8.9552238805970144E-2,{"$f":" IF( C13 > 0, INDEX('Наша база'!$A$2:$A$529, C13), \"нет кода\" )","v":"нет кода"},{"$f":" IF( C13 > 0, INDEX('Наша база'!$B$2:$B$529, C13), \"нет\" )","v":"нет"},{"$f":" IF( C13 > 0, INDEX('Наша база'!$C$2:$C$529, C13), \"нет договора\" )","v":"нет договора"}]
["СПБ ГУП \"ПАССАЖИРАВТОТРАНС\"","195009, Санкт-Петербург г, Комсомола ул, д.12",{"$f":" FindBestMatchTxt(B14,'Наша база'!$C$2:$C$529, 100%)","v":37},1,{"$f":" IF( C14 > 0, INDEX('Наша база'!$A$2:$A$529, C14), \"нет кода\" )","v":"2095"},{"$f":" IF( C14 > 0, INDEX('Наша база'!$B$2:$B$529, C14), \"нет\" )","v":"ООО \"АБА\" г.Санкт-Петербург"},{"$f":" IF( C14 > 0, INDEX('Наша база'!$C$2:$C$529, C14), \"нет договора\" )","v":"195009, г. Санкт-Петербург, ул. Комсомола, д.14"}]
["ОАО \"Авиакомпания \"Россия\"","196210, Санкт-Петербург г, Пилотов ул, д.31а",{"$f":" FindBestMatchTxt(B15,'Наша база'!$C$2:$C$529, 100%)","v":0},0.1276595744680851,{"$f":" IF( C15 > 0, INDEX('Наша база'!$A$2:$A$529, C15), \"нет кода\" )","v":"нет кода"},{"$f":" IF( C15 > 0, INDEX('Наша база'!$B$2:$B$529, C15), \"нет\" )","v":"нет"},{"$f":" IF( C15 > 0, INDEX('Наша база'!$C$2:$C$529, C15), \"нет договора\" )","v":"нет договора"}]
["ООО \"ЛЕКА-ФАРМ\"","197183, Санкт-Петербург г, Савушкина ул, д.128",{"$f":" FindBestMatchTxt(B16,'Наша база'!$C$2:$C$529, 100%)","v":91},1,{"$f":" IF( C16 > 0, INDEX('Наша база'!$A$2:$A$529, C16), \"нет кода\" )","v":"2077"},{"$f":" IF( C16 > 0, INDEX('Наша база'!$B$2:$B$529, C16), \"нет\" )","v":"ООО\"Стома-2\" г. Санкт-Петербург"},{"$f":" IF( C16 > 0, INDEX('Наша база'!$C$2:$C$529, C16), \"нет договора\" )","v":"198320, г. Санкт-Петербург, ул. Савушкина, д.135"}]
["ФГБ ВОУ ВПО \"Военно-медицинская академия имени С.М.Кирова\" Минобороны РФ","Санкт-Петербург г, Боткинская ул, д.17",{"$f":" FindBestMatchTxt(B17,'Наша база'!$C$2:$C$529, 100%)","v":0},5.6603773584905662E-2,{"$f":" IF( C17 > 0, INDEX('Наша база'!$A$2:$A$529, C17), \"нет кода\" )","v":"нет кода"},{"$f":" IF( C17 > 0, INDEX('Наша база'!$B$2:$B$529, C17), \"нет\" )","v":"нет"},{"$f":" IF( C17 > 0, INDEX('Наша база'!$C$2:$C$529, C17), \"нет договора\" )","v":"нет договора"}]
["ООО \"ЛЕКА-ФАРМ\"","197227, Санкт-Петербург г, Гаккелевская ул, д.33А, корп.1",{"$f":" FindBestMatchTxt(B18,'Наша база'!$C$2:$C$529, 100%)","v":0},9.5238095238095233E-2,{"$f":" IF( C18 > 0, INDEX('Наша база'!$A$2:$A$529, C18), \"нет кода\" )","v":"нет кода"},{"$f":" IF( C18 > 0, INDEX('Наша база'!$B$2:$B$529, C18), \"нет\" )","v":"нет"},{"$f":" IF( C18 > 0, INDEX('Наша база'!$C$2:$C$529, C18), \"нет договора\" )","v":"нет договора"}]
["ФГБ ВОУ ВПО \"Военно-медицинская академия имени С.М.Кирова\" Минобороны РФ","Санкт-Петербург г, Боткинская ул, д.23",{"$f":" FindBestMatchTxt(B19,'Наша база'!$C$2:$C$529, 100%)","v":0},5.6603773584905662E-2,{"$f":" IF( C19 > 0, INDEX('Наша база'!$A$2:$A$529, C19), \"нет кода\" )","v":"нет кода"},{"$f":" IF( C19 > 0, INDEX('Наша база'!$B$2:$B$529, C19), \"нет\" )","v":"нет"},{"$f":" IF( C19 > 0, INDEX('Наша база'!$C$2:$C$529, C19), \"нет договора\" )","v":"нет договора"}]
["ФГБ ВОУ ВПО \"Военно-медицинская академия имени С.М.Кирова\" Минобороны РФ","Санкт-Петербург г, Академика Лебедева ул, д.37",{"$f":" FindBestMatchTxt(B20,'Наша база'!$C$2:$C$529, 100%)","v":90},1,{"$f":" IF( C20 > 0, INDEX('Наша база'!$A$2:$A$529, C20), \"нет кода\" )","v":"2072"},{"$f":" IF( C20 > 0, INDEX('Наша база'!$B$2:$B$529, C20), \"нет\" )","v":"ФГУЗ ВЦЭРМ им. А.М. Никифорова МЧС России г. Санкт-Петербург"},{"$f":" IF( C20 > 0, INDEX('Наша база'!$C$2:$C$529, C20), \"нет договора\" )","v":"194044, г. Санкт-Петербург, ул. Академика Лебедева, д.4/2"}]
["ООО \"ЕМС\"","196070, Санкт-Петербург г, Победы ул, д.17",{"$f":" FindBestMatchTxt(B21,'Наша база'!$C$2:$C$529, 100%)","v":0},6.6666666666666666E-2,{"$f":" IF( C21 > 0, INDEX('Наша база'!$A$2:$A$529, C21), \"нет кода\" )","v":"нет кода"},{"$f":" IF( C21 > 0, INDEX('Наша база'!$B$2:$B$529, C21), \"нет\" )","v":"нет"},{"$f":" IF( C21 > 0, INDEX('Наша база'!$C$2:$C$529, C21), \"нет договора\" )","v":"нет договора"}]
["ОАО \"БАЛТИЙСКИЙ ЗАВОД \"ФИЛИАЛ \"Медико-санитарная часть № 3\"","199026, САНКТ-ПЕТЕРБУРГ Г, КОСАЯ ЛИНИЯ, Д.5",{"$f":" FindBestMatchTxt(B22,'Наша база'!$C$2:$C$529, 100%)","v":43},1,{"$f":" IF( C22 > 0, INDEX('Наша база'!$A$2:$A$529, C22), \"нет кода\" )","v":"2049"},{"$f":" IF( C22 > 0, INDEX('Наша база'!$B$2:$B$529, C22), \"нет\" )","v":"30.06.2013  -ДОГОВОР ЗАКРЫТ -  Филиал ОАО \"Балтийский завод\" \"МСЧ N3\"г. Санкт-Петербург"},{"$f":" IF( C22 > 0, INDEX('Наша база'!$C$2:$C$529, C22), \"нет договора\" )","v":"199026, г. Санкт-Петербург, Косая линия., д.5"}]

{"sheet":"Наша база","index":1,"n_rows":529,"n_cols":3,"rows_kept":529,"cut":false,"hidden":false,"merged":[]}
["Код ЛПУ","Наименование территориального отделения","Адрес территориального отделения"]
["2015","СПб ГБУЗ \"Детская городская больница № 1\" г.Санкт-Петербург","198205, г. Санкт-Петербург, ул. Авангардная, д.14"]
["2011","ООО \"Лайф\" (Санкт-Петербург)","193317, г. Санкт-Петербург, Александра Невского пл., д.2"]
["2027","ООО\"Дункан\" г. Санкт-Петербург","194156, г. Санкт-Петербург, ул. Земледельческая, д.2"]
["2030","СПб ГУЗ \"КДЦ № 85\" г. Санкт-Петербург","198510, г. Санкт-Петербург, Стачек пр-кт., д.59, корп.3"]
["2044","НУЗ \"Дорожная поликлиника ОАО\"РЖД\" г. Санкт-Петербург","192007, г. Санкт-Петербург, ул. Боровая, д.55"]
["2078","ООО \"Институт здоровья человека\" г. Санкт-Петерург","197110, г. Санкт-Петербург, Динамо пр-кт., д.3"]
["2028","ООО\"Астра\" г. Санкт-Петербург","191186, г. Санкт-Петербург, Реки Мойки наб., д.51"]
["2052","ООО \"Стома\" г. Санкт-Петербург","197136, г. Санкт-Петербург, 26-я линия., д.15, корп.2, лит.А"]
["2068","СПб ГУЗ \"Родильный дом №9\" (Санкт-Петербург)","196158, г. Санкт-Петербург, ул. Орджоникидзе, д.47"]
["2066","ООО\"А и В\" г. Санкт-Петербург","193167, г. Санкт-Петербург, Невский пр-кт., д.173"]
["2058","ООО \"Стома- 1\" г. Санкт-Петербург","197198, г. Санкт-Петербург, ул. Блохина, д.33"]
["2074","ЗАО \"Фирма \"ЮЛАНД\" г. Санкт-Петербург","191104, г. Санкт-Петербург, ул. Чехова, д.4"]
["2075","СПб клиническая больница РАН г. Санкт-Петербург","194017, г. Санкт-Петербург, Тореза пр-кт., д.72"]
["2081","СПб ГБУЗ \"Городская Александровская больница\" г. Санкт-Петербург","193312, г. Санкт-Петербург, Солидарности пр-кт., д.4"]
["2029","ОУ \"ЛДЦ  МИБС\" г. Санкт-Петербург","191144, г. Санкт-Петербург, ул. Советская 6-я, д.24-26"]
["2055","СПб ГУЗ «Детская городская больница №19 им. К.А. Раухфуса» г. Санкт-Петербург","193036, г. Санкт-Петербург, Суворовский пр-кт., д.4, корп.лит.А"]
["2024","СПб ГУЗ Городская Больница Святого  Великомученика Георгия ","194354, г. Санкт-Петербург, Северный пр-кт., д.1"]
["2036","ООО Научно-производственное предприятие \"ИммуноБиоСервис\" г. Санкт-Петербург","199034, г. Санкт-Петербург, Московское ш., д.30, корп.2, лит. А"]
["2031","ФГБУ НИИ акушерства и гинекологии им. Д.О.Отта СЗО РАМН г.Санкт-Петербург","199034, г. Санкт-Петербург, Менделеевская линия., д.3"]
["2021","СПБ ГУЗ \"Городская многопрофильная больница №2\" (Санкт-Петербург)","194354, г. Санкт-Петербург, Учебный пер., д.5"]
["2059","ООО\"Стома плюс\" г. Санкт-Петербург","197198, г. Санкт-Петербург, ул. Блохина, д.33 - НЕТ ТЕРРИТОРИАЛЬНОГО ОТДЕЛЕНИЯ"]
["2059","ООО\"Стома плюс\" г. Санкт-Петербург","194354, г. Санкт-Петербург, ул. Сикейроса, д.1 - НЕТ ТЕРРИТОРИАЛЬНОГО ОТДЕЛЕНИЯ"]
["2061","ГУЗ\"Детская городская больница №22\" г. Санкт-Петербург","196656, г. Санкт-Петербург, г. Колпино, Заводской пр-кт., д.1, "]
["2067","ООО\"Виктория\" г. Санкт-Петербург","192286, г. Санкт-Петербург, ул. Будапештская, д.66"]
["2084","ООО\"Стомадент\" (Санкт-Петербург)","197371, г. Санкт-Петербург, Комендантский пр-кт., д.25, корп.1"]
["2098","ДОГОВОР ЗАКРЫТ 01.05.2012 г. ООО \"Ассистанс-Экспресс\" г.Санкт-Петербург","194291, г. Санкт-Петербург, Культуры пр-кт., д.4"]
["2067","ООО\"Виктория\" г. Санкт-Петербург","197739, г. Санкт-Петербург, Ленинский пр-кт., д.133, корп.2"]
["2052","ООО \"Стома\" г. Санкт-Петербург","197136, г. Санкт-Петербург, ул. Ленина, д.22  "]
["2052","ООО \"Стома\" г. Санкт-Петербург","197198, г. Санкт-Петербург, ул. Блохина, д.33 - НЕТ ТЕРРИТОРИАЛЬНОГО ОТДЕЛЕНИЯ"]
["2087","ООО \"Лечебно-диагностический центр \"Светлановский\" г. Санкт-Петербург","194156, г. Санкт-Петербург, Энгельса пр-кт., д.27"]
["2008","ДОГОВОР ЗАКРЫТ- 09.06.2011г.см.код 20390 СПКК ФГУ \"НХМЦ им. Н.И. Пирогова\" Минздравсоцразвития России г.Санкт-Петербург","190103, г. Санкт-Петербург, Реки Фонтанки наб., д.154"]
["2091","ООО \"Астра-2\" г. Санкт-Петербург","190103, г. Санкт-Петербург, ул. Красноармейская 8-я, д.3"]
["2035","ЗАО \"Меди\" г. Санкт-Петербург","197738, г. Санкт-Петербург, Чкаловский пр-кт., д.35"]
["2035","НЕТ ТЕРРИТОРИАЛЬНОГО ОТДЕЛЕНИЯ-ЗАО \"Меди\" г. Санкт-Петербург","НЕТ ТЕРРИТОРИАЛЬНОГО ОТДЕЛЕНИЯ - , г. Санкт-Петербург, ул. Советская 10-я, д.13"]
["20005","СПб ГБУЗ \"Городская Покровская больница\" г.Санкт-Петербург","199106, г. Санкт-Петербург, Большой ВО пр-кт., д.85"]
["78-20353","ООО \"Ришар\" г. Санкт-Петербург","194295, г. Санкт-Петербург, Просвещения пр-кт., д.33, корп.2, лит А"]
["2095","ООО \"АБА\" г.Санкт-Петербург","195009, г. Санкт-Петербург, ул. Комсомола, д.14"]
["20018","ООО \"Медика\" г. Санкт-Петербург","199226, г. Санкт-Петербург, ул. Нахимова, д.11, литер. А, пом. 67Н"]
["2007","СПб ГУЗ \"Городская поликлиника №40\" (Санкт-Петербург)","191025, г. Санкт-Петербург, Невский пр-кт., д.86"]
["2027","ООО\"Дункан\" г. Санкт-Петербург","195030, г. Санкт-Петербург, ул. Коммуны, д.32, корп.1, лит.А"]
["2027","ООО\"Дункан\" г. Санкт-Петербург","197371, г. Санкт-Петербург, ул. Шаврова, д.21"]
["2043","СПб ГУЗ \"Городская больница №38 им.Н.А.Семашко\" г. Санкт-Петербург","196601, г. Санкт-Петербург, г. Пушкин, ул. Госпитальная, д.5/7"]
["2049","30.06.2013  -ДОГОВОР ЗАКРЫТ -  Филиал ОАО \"Балтийский завод\" \"МСЧ N3\"г. Санкт-Петербург","199026, г. Санкт-Петербург, Косая линия., д.5"]
["20012","ГУЗ \"Родильный дом №10\" г. Санкт-Петербург","198259, г. Санкт-Петербург, ул. Тамбасова, д.21, литер. А"]
["2073","ООО\"Форум Интернэшнл Технолоджи\" г. Санкт-Петербург","190000, г. Санкт-Петербург, Морская наб., д.57, офис 18 Н"]
["2079","ООО Медицинское объединение \"ОНА\" г. Санкт-Петербург","195196, г. Санкт-Петербург, ул. Рижская, д.12"]
["20023","ООО \"АВА-ПЕТЕР\" (г. Санкт-Петербург)","194295, г. Санкт-Петербург, Художников пр-кт., д.24 НЕТ ТЕРРИТОРИАЛЬНОГО ОТДЕЛЕНИЯ, корп.1"]
["20025","ООО \"Аркадия\" (г.Санкт-Петербург)","190008, г. Санкт-Петербург, ул. Ломоносова, д.26"]
["2042","АНО \"Медицинский центр\"  XXI век\" г. Санкт-Петербург","196643, г. Санкт-Петербург, Сампсониевский Б. пр-кт., д.45, лит. А"]
["2034","ООО \"33 Зуб\" г. Санкт-Петербург","198332, г. Санкт-Петербург, Маршала Жукова пр-кт., д.33, корп.1 лит.А пом.6Н"]
["2052","ООО \"Стома сити\" г. Санкт-Петербург","г. Санкт-Петербург, Невский пр-кт., д.163 НЕТ ТЕРРИТОРИАЛЬНОГО ОТДЕЛЕНИЯ"]
["2052","ООО \"Стома\" г. Санкт-Петербург","194156, г. Санкт-Петербург, Театральная пл., д.6 - НЕТ ТЕРРИТОРИАЛЬНОГО ОТДЕЛЕНИЯ"]
["2052","ООО \"Стома\" г. Санкт-Петербург","194354, г. Санкт-Петербург, ул. Сикейроса, д.1  НЕТ ТЕРРИТОРИАЛЬНОГО ОТДЕЛЕНИЯ"]
["6604","ООО \"Стоматологическая поликлиника \"Шанс-плюс\" г. Великий Новгород","652373, Новгородская обл., Новгородский р-н., г. Великий Новгород, ул. Большая Санкт-Петербургская, д.9"]
["2063","ДОГОВОР ЗАКРЫТ - ФГБУ \"СПб НИИ ЛОР\" Минздрава России г. Санкт-Петербург","190013, г. Санкт-Петербург, ул. Бронницкая, д.9"]
["2004","ЕР сервис Петербургская неотложка (Санкт-Петербург)","191014, г. Санкт-Петербург, Басков пер., д.13-15, пом 28"]
["2013","ООО\"Ортодонтический центр \"ДентИдеал\" (Санкт-Петербург)","198013, г. Санкт-Петербург, Подъездной пер., д.3 лит.Б пом.5-Н"]
["2032","В СТАДИИ РАСТОРЖЕНИЯ 14.01.2014, см. код 20464 ЗАО \"Городской пародонтологический центр \"ПАКС\" г. Санкт-Петербург","191186, г. Санкт-Петербург, Добролюбова пр-кт., д.27"]
["2047","ДОГОВОР ЗАКРЫТ  - СПб ГБУЗ \"Поликлиника городская № 82 (гомеопатическая)\" г.Санкт-Петербург","191011, г. Санкт-Петербург, ул. Пражская, д.12"]
["2035","ЗАО \"Меди\" г. Санкт-Петербург","НЕТ ТЕРРИТОРИАЛЬНОГО ОТДЕЛЕНИЯ - , г. Санкт-Петербург, Московский пр-кт., д.72 "]
["2035","ЗАО \"Меди\" г. Санкт-Петербург","198320, г. Санкт-Петербург, Лиговский пр-кт., д.84/2"]
["20002","ЗАО \"Клиника доброго стоматолога\" г.Санкт-Петербург","197348, г. Санкт-Петербург, Коломяжское ш., д.20"]
["2052","ООО \"Стома\" г. Санкт-Петербург","196210, г. Санкт-Петербург, Коломяжское ш., д.26 - НЕТ ТЕРРИТОРИАЛЬНОГО ОТДЕЛЕНИЯ"]
["2030","СПб ГУЗ \"КДЦ № 85\" г. Санкт-Петербург","188511, г. Санкт-Петербург, ул. Лени Голикова, д.29, корп.4"]
["2082","ООО\"Ортодонтический центр \"Дент Идеал Плюс\" г. Санкт-Петербург","191014, г. Санкт-Петербург, Басков пер., д.18"]
["2030","СПб ГБУЗ \"КДЦ № 85\" г. Санкт-Петербург","198260, г. Санкт-Петербург, Ветеранов пр-кт., д.89, корп.3"]
["2096","ООО \"АБА-клиника\" г.Санкт-Петербург","195220, г. Санкт-Петербург, Гражданский пр-кт., д.36 лит.  А"]
["20004","ООО \"ПАНДЕНТ Плюс\" г. Санкт-Петербург","196066, г. Санкт-Петербург, ул. Типанова, д.4 лит. А, пом. 31-Н"]
["2006","СПб ГАУЗ \"Городская поликлиника № 81\" г. Санкт-Петербург","190000, г. Санкт-Петербург, Вознесенский пр-кт., д.19"]
["20025","ООО \"Аркадия\" (г.Санкт-Петербург)","191002, г. Санкт-Петербург, Загородный пр-кт., д.21-23, лит.А"]
["2089","Спб ГУЗ \"Детская городская клиническая больница №5 им. Н.Ф. Филатова\" г.Санкт-Петербург","192289, г. Санкт-Петербург, ул. Бухарестская, д.134"]
["2090","ООО \"Стоматологическая клиника \"Клуб Дентал\" г.Санкт-Петербург","190068, г. Санкт-Петербург, Бойцова пер., д.4"]
["20006","ООО \"33 Премиум\" г. Санкт-Петербург","194358, г. Санкт-Петербург, Просвещения пр-кт., д.30, корп.1 корп.А, пом. 14Н"]
["2057","ЛПУ \"Родильный дом №2\", Санкт-Петербург","191123, г. Санкт-Петербург, ул. Фурштатская, д.36а"]
["2069","В СТАДИИ ПЕРЕЗАКЛЮЧЕНИЕ - ГБОУ ВПО \"Первый Санкт-Петербургский государственный медицинский университет им академика И.П. Павлова\" Минздрава РФ г.Санкт-Петербург","197022, г. Санкт-Петербург, ул. Льва Толстого, д.7"]
["20019","ООО \"Доктор Дент\" г. Санкт-Петербург","191028, г. Санкт-Петербург, Литейный пр-кт., д.24, лит. А, пом. 3Н"]
["20016","ООО \"БалтМед гавань\" г. Санкт-Петербург","г. Санкт-Петербург, Галерный проезд., д.5"]
["20029","ООО \"МСЧ №157\" г. Санкт-Петербург","196066, г. Санкт-Петербург, ул. Варшавская, д.100, лит. А"]
["2052","ООО \"Стома\" г. Санкт-Петербург","188511, г. Санкт-Петербург, ул. Кораблестроителей, д.32/3 НЕТ ТЕРРИТОРИАЛЬНОГО ОТДЕЛЕНИЯ, корп.3"]
["20027","ООО \"Алев\" (Санкт-петербург)","194017, г. Санкт-Петербург, Энгельса пр-кт., д.58, лит. А, пом.50-Н"]
["20030","СПб ГУЗ \"ГКДЦ № 1\" г. Санкт-Петербург","194354, г. Санкт-Петербург, ул. Сикейроса, д.10"]
["20030","СПб ГУЗ \"ГКДЦ № 1\" г. Санкт-Петербург","194156, г. Санкт-Петербург, 2-ой Муринский пр-кт., д.9"]
["2071","ЗАО \"Поликлинический комплекс\" г. Санкт-Петербург","190013, г. Санкт-Петербург, Московский пр-кт., д.22"]
["2054","ГОУ  ВПО ГПМА, КДЦ г. Санкт-Петербург","194100, г. Санкт-Петербург, ул. Матросова, д.22"]
["2054","ГОУ  ВПО ГПМА, КДЦ г. Санкт-Петербург","194100, г. Санкт-Петербург, ул. Матросова, д.5"]
["20036","ООО \"ИНОДЕНТ\"  г. Санкт-Петербург","195257, г. Санкт-Петербург, Науки пр-кт., д.10, корп.1, лит.А, пом.11-Н"]
["20036","ООО \"ИНОДЕНТ\"  г. Санкт-Петербург","188512, г. Санкт-Петербург, Тореза пр-кт., д.72, лит.А, пом.21Н"]
["20037","ООО \"ИнВИТА\" г, Санкт-Петербург","191123, г. Санкт-Петербург, ул. Шпалерная, д.34"]
["2060","ООО\"ТАРИ\" г. Санкт-Петербург","191123, г. Санкт-Петербург, ул. Фурштатская, д.31"]
["2072","ФГУЗ ВЦЭРМ им. А.М. Никифорова МЧС России г. Санкт-Петербург","194044, г. Санкт-Петербург, ул. Академика Лебедева, д.4/2"]
["2077","ООО\"Стома-2\" г. Санкт-Петербург","198320, г. Санкт-Петербург, ул. Савушкина, д.135"]
["2083","ООО\"Стоматологическая фирма \"32\" г. Санкт-Петербург","194156, г. Санкт-Петербург, Энгельса пр-кт., д.34"]
["20007","ООО \"33 ЗУБ Люкс\" г. Санкт-Петербург","197227, г. Санкт-Петербург, Испытателей пр-кт., д.6, корп.1, лит.А, пом.19Н"]
["20008","ООО \"33 ЗУБ плюс\" г.Санкт-Петербург","197374, г. Санкт-Петербург, ул. Савушкина, д.125, корп.1, лит.А, кв.12"]
["20031","ООО \"ОксиСмайл\" г. Санкт-Петербург","197136, г. Санкт-Петербург, Большой ПС пр-кт., д.74"]
["2058","ООО \"Стома- 1\" г. Санкт-Петербург","197348, г. Санкт-Петербург, Коломяжский  пр-кт., д.26, корп.лит.А, кв.9"]
["2059","ООО\"Стома плюс\" г. Санкт-Петербург","196655, г. Санкт-Петербург, Богатырский пр-кт., д.25 - НЕТ ТЕРРИТОРИАЛЬНОГО ОТДЕЛЕНИЯ"]
["2059","ООО\"Стома плюс\" г. Санкт-Петербург","190000, г. Санкт-Петербург, Грибоедова Канала наб., д.107/6, лит. А"]
["2077","ООО\"Стома-2\" г. Санкт-Петербург","г. Санкт-Петербург, Невский пр-кт., д.163, НЕТ ТЕРРИТОРИАЛЬНОГО ОТДЕЛЕНИЯ"]
["2077","ООО\"Стома-2\" г. Санкт-Петербург","195009, г. Санкт-Петербург, Ленина пл., д.22, НЕТ ТЕРРИТОРИАЛЬНОГО ОТДЕЛЕНИЯ"]
["20014","ЗАО \"Дентал Палас\" (г. Санкт-Петербург)","197022, г. Санкт-Петербург, ул. Петропавловская, д.4, корп.9-Н"]
["20020","ЗАО \"Медицинский центр РАМИ\"","191014, г. Санкт-Петербург, ул. Кирочная, д.13"]
["2008","В СТАДИИ РАСТОРЖЕНИЯ 01.10.2011г.- СПКК ФГУ \"НХМЦ им. Н.И. Пирогова\" Минздравсоцразвития России г.Санкт-Петербург","199004, г. Санкт-Петербург, Кадетская линия., д.13, корп.15"]
["2097","ФГУ \"РНХИ им. проф. А.Л.Поленова\" Минздравсоцразвития России, Санкт-Петербург","191014, г. Санкт-Петербург, ул. Маяковского, д.12, лит.Р"]
["20048","ООО \"МЦ \"Олмед\", Санкт-Петербург","191036, г. Санкт-Петербург, ул. Советская 5-я, д.21-23"]
["2044","НУЗ \"Дорожная поликлиника ОАО\"РЖД\" г. Санкт-Петербург","173015, Новгородская обл., Новгородский р-н., г. Великий Новгород, Карла Маркса пр-кт., д.5а"]
["20023","ООО \"АВА-ПЕТЕР\" (г. Санкт-Петербург)","191104, г. Санкт-Петербург, Литейный пр-кт., д.55, лит А"]
["2022","CПБ ГУЗ \"Городская больница №31\" (Санкт-Петербург)","197110, г. Санкт-Петербург, Динамо пр-кт., д.3"]
["2030","СПб ГУЗ \"КДЦ № 85\" г. Санкт-Петербург","198260, г. Санкт-Петербург, Ветеранов пр-кт., д.89, корп.3"]
["2069","ГОУ ВПО  СПбГМУ им. И.П.Павлова Росздрава г. Санкт-Петербург","197022, г. Санкт-Петербург, ул. Льва Толстого, д.6/8"]
["2042","ООО \"МЦ\"  ЭХО\" г. Санкт-Петербург ","196070, г. Санкт-Петербург, ул. Бассейная, д.45, лит. А НЕТ ТЕРРИТ.ОТДЕЛЕНИЯ"]
["20030","СПб ГУЗ \"ГКДЦ № 1\" г. Санкт-Петербург","194354, г. Санкт-Петербург, ул. Сикейроса, д.10"]
["2079","ООО Медицинское объединение \"ОНА\" г. Санкт-Петербург","198013, г. Санкт-Петербург, Реки Фонтанки наб., д.110, лит.Б, корп.пом.8Н"]
["20049","ООО \"Медсанчасть №67\", Санкт-Петербург","198516, г. Санкт-Петербург, г. Петродворец, Санкт-Петербургский проезд., д.60"]
["20050","НУЗ \"Дорожная клиническая больница ОАО \"РЖД\", Санкт-Петербург","195271, г. Санкт-Петербург, Мечникова пр-кт., д.27"]
["20039","СПб ГУП \"Пассажиравтотранс\" Санкт-Петербург","195009, г. Санкт-Петербург, ул. Комсомола, д.12"]
["20066","ДОГОВОР ЗАКРЫТ ООО \"Корона-Люкс\" (СЦ \"Корона\"), Санкт-Петербург","198096, г. Санкт-Петербург, ул. Краснопутиловская, д.8"]
["20020","ЗАО \"Медицинский центр РАМИ\", Санкт-Петербург","193036, г. Санкт-Петербург, ул. Гончарная, д.20"]
["2035","ЗАО \"Меди\" г. Санкт-Петербург","196621, г. Санкт-Петербург, Московский пр-кт., д.79"]
["20041","ООО \"ЕМС\", г. Санкт-Петербург","196084, г. Санкт-Петербург, Московский пр-кт., д.78, лит. Б"]
["20034","ПК \"Дилесто\", Санкт-Петербург","195269, г. Санкт-Петербург, ул. Учительская, д.19 - НЕТ ТЕРРИТОРИАЛЬНОГО ОТДЕЛЕНИЯ, корп.3, кв.11"]
["2042","ООО \"МЦ \"XXI век\" Сикейроса 7\" г. Санкт-Петербург","194354, г. Санкт-Петербург, ул. Сикейроса, д.7 , корп.2, лит. А"]
["2050","ООО\"Медицинский центр Одонт\" г. Санкт-Петербург","195027, г. Санкт-Петербург, Большеохтинский пр-кт., д.37"]
["20046","ФГУ \"РНЦРХТ Росмедтехнологий\", г. Санкт-Петербург","197758, г. Санкт-Петербург, п. Песочный, ул. Ленинградская, д.70"]
["20038","СПб ГУЗ \"Городская больница №20\", Санкт-Петербург","196135, г. Санкт-Петербург, ул. Гастелло, д.21"]
["2003","ОАО \"Адмиралтейские верфи\", Санкт-Петербург","190008, г. Санкт-Петербург, ул. Садовая, д.126"]
["2069","ГОУ ВПО  СПбГМУ им. И.П.Павлова Росздрава г. Санкт-Петербург","197022, г. Санкт-Петербург, ул. Льва Толстого, д.6/8"]
["2069","ГОУ ВПО  СПбГМУ им. И.П.Павлова Росздрава г. Санкт-Петербург","197022, г. Санкт-Петербург, ул. Рентгена, д.8"]
["2035","ЗАО \"Меди\" г. Санкт-Петербург","198326, г. Санкт-Петербург, Заневский пр-кт., д.23"]
["2064","ООО \"Феникс\" г. Санкт-Петербург","191025, г. Санкт-Петербург, ул. Колокольная, д.11,ЛА, пом.8Н"]
["20033","ООО \"Стоматологическая клиника\"На Стародеревенской\" г. Санкт-Петербург","197372, г. Санкт-Петербург, ул. Стародеревенская, д.33/10, корп.пом.21-Н"]
["2020","ДОГОВОР ЗАКРЫТ -ООО ЛПСЦ \"Эдем\"","г. Санкт-Петербург, ул. Варшавская, д.43"]
["2035","ЗАО \"Меди\" г. Санкт-Петербург","ВРЕМЕННО НЕ РАБОТАЮТ - , г. Санкт-Петербург, Каменоостровский пр-кт., д.42б "]
["2069","ГОУ ВПО  СПбГМУ им. И.П.Павлова Росздрава г. Санкт-Петербург","196645, г. Санкт-Петербург, ул. Рентгена, д.12"]
["20052","ООО \"Медцентр Монблан\" ,Санкт-Петербург","197198, г. Санкт-Петербург, ул. Зверинская, д.18"]
["20004","ООО \"ПАНДЕНТ Плюс\" г. Санкт-Петербург","198218, г. Санкт-Петербург, Литейный пр-кт., д.45"]
["20004","ООО \"ПАНДЕНТ Плюс\" г. Санкт-Петербург","г. Санкт-Петербург, ул. Восстания, д.47"]
["20059","ООО \"ССК \"Дентомед\", Сантк-Петербург","191036, г. Санкт-Петербург, ул. Советская 4-я, д.18/9, лит А"]
["2025","Корис ассистанс (Санкт-Петербург)","194044, г. Санкт-Петербург, ул. Чугунная, д.46"]
["2033","ФГБУ \"РНИИТО им.Р.Р.Вредена\" Минздравсоцразвития России г. Санкт-Петербург","195427, г. Санкт-Петербург, ул. Академика Байкова, д.8"]
["2046","АНО \"Поликлиника Петербурского Метрополитена\" г. Санкт-Петербург","198216, г. Санкт-Петербург, Трамвайный пр-кт., д.22"]
["2001","ФГБУЗ \"КБ №122 им.Л.Г.Соколова ФМБА России\" г.Санкт-Петербург","194291, г. Санкт-Петербург, Культуры пр-кт., д.4"]
["20042","СПб ГУЗ \"Городская больница №9\", г. Санкт-Петербург","197110, г. Санкт-Петербург, Крестовский пр-кт., д.18"]
["20023","ООО \"АВА-ПЕТЕР\" (г. Санкт-Петербург)","197374, г. Санкт-Петербург, ул. Савушкина, д.133, корп.1, лит В"]
["20023","ООО \"АВА-ПЕТЕР\" (г. Санкт-Петербург)","194354, г. Санкт-Петербург, Учебный пер., д.2"]
["20023","ООО \"АВА-ПЕТЕР\" (г. Санкт-Петербург)","192241, г. Санкт-Петербург, Славы пр-кт., д.52"]
["20053","ООО \"Боткинская 33\", Санкт-Петербург","197022, г. Санкт-Петербург, Большой ПС пр-кт., д.100, офис 701 - НЕТ ТЕРРИТОРИАЛЬНОГО ОТДЕЛЕНИЯ"]
["20054","ООО \"Ильюшина 33\", Санкт-Петербург","197022, г. Санкт-Петербург, Большой ПС пр-кт., д.100, офис 701 - НЕТ ТЕРРИТОРИАЛЬНОГО ОТДЕЛЕНИЯ"]
["2013","НЕТ ТЕРИТОРИАЛЬНОГО ОТДЕЛЕНИЯ  - ООО\"Ортодонтический центр \"ДентИдеал\" (Санкт-Петербург)","191014, г. Санкт-Петербург, Басков пер., д.18"]
["20044","ФГБУ \"Консультативно-диагностический центр с поликлиникой\" УДП РФ","197110, г. Санкт-Петербург, Морской пр-кт., д.3"]
["20024","ЗАО \"Ситилаб\" г. Санкт-Петербург","192289, г. Санкт-Петербург, ул. Бухарестская, д.134 А, корп.4"]
["20045","ООО \"Лабтест\", Санкт-Петербург","195197, г. Санкт-Петербург, ул. Минеральная, д.13 \"А\", пом. 16-Н"]
["20045","ООО \"Лабтест\", Санкт-Петербург","195009, г. Санкт-Петербург, ул. Комсомола, д.14, кабинет 53"]
["20053","ООО \"Боткинская 33\", Санкт-Петербург","195009, г. Санкт-Петербург, ул. Боткинская, д.1, пом. 10Н, лит. Б"]
["20054","ООО \"Ильюшина 33\", Санкт-Петербург","195009, г. Санкт-Петербург, ул. Ильюшина, д.1, корп.1, лит. А, пом. 14Н"]
["2019","Институт мозга человека РАН (Санкт-Петербург)","197376, г. Санкт-Петербург, ул. Академика Павлова, д.9"]
["20047","СПб ГАУЗ \"Поликлиника городская стоматологическая № 22\" г.Санкт-Петербург","191014, г. Санкт-Петербург, Басков пер., д.38"]
["2100","ФГУ \"МНТК \"Микрохирургия глаза\" им. акад. С.Н.Федорова Росмедтехнологии","192283, г. Санкт-Петербург, ул. Ярослава Гашека, д.21"]
["20055","СПб ГУЗ \"Детская городская больница №2 святой Марии Магдалины\", Санкт-Петербург","199053, г. Санкт-Петербург, 2-я линия., д.47"]
["20056","ООО \"Дента\", Санкт-Петербург","191002, г. Санкт-Петербург, Шлиссельбургский пр-кт., д.1"]
["2020","ДОГОВОР ЗАКРЫТ -ООО ЛПСЦ \"Эдем\"","198096, г. Санкт-Петербург, ул. Зенитчиков"]
["20057","Филиал ООО \"Клиника ЛМС\", г. Санкт-Петербург","196084, г. Санкт-Петербург, Лиговский пр-кт., д.274 А"]
["2092","ГБУЗ \"Ленинградская областная клиническая больница\" г.Санкт-Петербург","194291, г. Санкт-Петербург, Луначарского пр-кт., д.45-49"]
["20063","ЧУЗ МСЧ \"СИЛОВЫЕ МАШИНЫ\"  (г. Санкт-Петербург)","196621, г. Санкт-Петербург, ул. Ватутина, д.3"]
["78-20313","ООО \"Балтийская медицинская клиника\", Санкт-Петербург","194356, г. Санкт-Петербург, Выборгское ш., д.5, корп.1"]
["20035","ООО \"Городская стоматологическая поликлиника № 24\" г. Санкт-Петербург","194017, г. Санкт-Петербург, Костромской пр-кт., д.11"]
["2086","ООО \"Аллегро\" Санкт-Петербург","191180, г. Санкт-Петербург, Загородный пр-кт., д.45"]
["20034","ПК \"Дилесто\", Санкт-Петербург","197349, г. Санкт-Петербург, ул. Долгоозерная, д.5, корп.2"]
["20034","ПК \"Дилесто\", Санкт-Петербург","197349, г. Санкт-Петербург, ул. Маршала Новикова, д.2, корп.1"]
["20034","ПК \"Дилесто\", Санкт-Петербург","197972, г. Санкт-Петербург, ул. Камышовая, д.18"]
["2045","ДОГОВОР ЗАКРЫТ 12.10.2011 г. - КДП ГОУ ВПО ГМА им. И.И.Мечникова Росздрава, г. Санкт-Петербург","193091, г. Санкт-Петербург, Октябрьская наб., д.6 , корп.2, лит.А"]
["20317","СПб ГБУЗ Клиническая больница Святителя Луки  г.Санкт-Петербург","197720, г. Санкт-Петербург, ул. Чугунная, д.46"]
["20067","ДОГОВОР ЗАКРЫТ см. Код 20463 ООО \"АрхиМед\", Санкт-Петербург","190020, г. Санкт-Петербург, ул. Перекопская, д.5, лит. А, пом. 8Н"]
["20011","ООО \"Дентос\" г.Санкт-Петербург","197101, г. Санкт-Петербург, Каменоостровский пр-кт., д.20, лит А"]
["20011","ООО \"Дентос\" г.Санкт-Петербург","194017, г. Санкт-Петербург, Костромской пр-кт., д.30, лит. Б"]
["78-20200","ЛОГУЗ \"Детская клиническая больница\", Санкт-Петербург","195009, г. Санкт-Петербург, ул. Комсомола, д.6"]
["20071","ООО \"Кардиоцентр \"Черная речка\", Санкт-Петербург","191119, г. Санкт-Петербург, Испытателей пр-кт., д.8, корп.1 пом. 20-Н"]
["2012","ООО \"Фирма Вероника ЛТД\" (Санкт-Петербург)","196620, г. Санкт-Петербург, Средний пр-кт., д.48/27"]
["20022","ФГУП НИИ ПММ Филиал \"Клиника \"Семейная медицина\" г. Санкт-Петербург- ЛПУ ЗАКРЫТО С 01.07.2010","194291, г. Санкт-Петербург, Культуры пр-кт., д.4"]
["78-2075","СПб клиническая больница РАН,  г.Санкт-Петербург","194017, г. Санкт-Петербург, Тореза пр-кт., д.72"]
["78-2092","ГБУЗ \"Ленинградская областная клиническая больница\" г.Санкт-Петербург","194291, г. Санкт-Петербург, Луначарского пр-кт., д.45-49"]
["78-20250","ООО \"Аполлония Дентал Клиник\" г. Санкт-Петербург","197110, г. Санкт-Петербург, Малый ВО пр-кт., д.36-38, корп.лит.В"]
["20022","ФГУП НИИ ПММ Филиал \"Клиника \"Семейная медицина\" г. Санкт-Петербург- ЛПУ ЗАКРЫТО С 01.07.2010","194291, г. Санкт-Петербург, Луначарского пр-кт., д.49, пом. 4Н, лит. А"]
["2067","ООО\"Виктория\" г. Санкт-Петербург","193312, г. Санкт-Петербург, Товарищеский пр-кт., д.10, корп.3"]
["20082","ООО \"Дентомед\" г. Санкт-Петербург","191014, г. Санкт-Петербург, Лиговский пр-кт., д.9"]
["6609","ООО \"Поликлиника Волна\" г.Великий Новгород","173003, Новгородская обл., Новгородский р-н., г. Великий Новгород, ул. Большая Санкт-Петербургская, д.44"]
["2012","ООО \"Фирма Вероника ЛТД\" (Санкт-Петербург)","197755, г. Санкт-Петербург, ул. Олеко Дундича, д.17, корп.1"]
["2070","ООО \"Гранти-Мед\" г. Санкт-Петербург","198097, г. Санкт-Петербург, ул. Корнеева, д.6"]
["2085","ООО\"Медицинская клиника \"ВалааМ\", Санкт-Петербург","197343, г. Санкт-Петербург, Ланское ш., д.24, корп.2,лит.А,пом.1Н"]
["2062","МЦ РОСНО( Санкт-Петербург)-закрыто","191123, г. Санкт-Петербург, ул. Рылеева, д.15, лит.А, пом.7н"]
["2035","ЗАО \"Меди\" г. Санкт-Петербург","197729, г. Санкт-Петербург, ул. Маршала Захарова, д.62, корп.1"]
["78-2006","СПб ГУЗ \"Городская поликлиника № 81\" (Санкт-Петербург)","190000, г. Санкт-Петербург, Вознесенский пр-кт., д.19"]
["78-20043","ООО \"Клиника \"Аллергомед\", Санкт-Петербург","191025, г. Санкт-Петербург, Кузнечный пер., д.2-4"]
["20011","ООО \"Дентос\" г.Санкт-Петербург","193036, г. Санкт-Петербург, ул. Асафьева, д.9, корп.к1. литА"]
["20068","ООО \"СолоДент-плюс\", Санкт-Петербург","193232, г. Санкт-Петербург, ул. Тельмана, д.41, корп.1, пом. 22-Н"]
["2065","ООО\"Райден\"(Санкт-Петербург)","198207, г. Санкт-Петербург, Ленинский пр-кт., д.116"]
["20313","ООО \"Балтийская медицинская клиника\" г. Санкт-Петербург","194356, г. Санкт-Петербург, Выборгское ш., д.5, корп.1."]
["78-20043","ООО \"Клиника \"Аллергомед\", Санкт-Петербург","347629, г. Санкт-Петербург, ул. Бармалеева, д.12"]
["78-20043","ООО \"Клиника \"Аллергомед\", Санкт-Петербург","197738, г. Санкт-Петербург, ул. Достоевского, д.18"]
["20043","ООО \"Клиника \"Аллергомед\", Санкт-Петербург","197738, г. Санкт-Петербург, ул. Достоевского, д.18"]
["20043","ООО \"Клиника \"Аллергомед\", Санкт-Петербург","196621, г. Санкт-Петербург, Московский пр-кт., д.109"]
["2035","ЗАО \"Меди\" г. Санкт-Петербург","198515, г. Санкт-Петербург, Комендантский пр-кт., д.17"]
["2035","ЗАО \"Меди\" г. Санкт-Петербург","191025, г. Санкт-Петербург, Невский пр-кт., д.82"]
["2035","ЗАО \"Меди\" г. Санкт-Петербург","191011, г. Санкт-Петербург, ул. Итальянская, д.31"]
["2035","ЗАО \"Меди\" г. Санкт-Петербург","195053, г. Санкт-Петербург, 1-я линия., д.36 В.О."]
["20307","ООО \"ПРОФМЕД+\" (г.Санкт-Петербург)","192019, г. Санкт-Петербург, Обуховской обороны пр-кт., д.7"]
["2080","ООО Центр МРТ ОНА (С.-Петербург)","198255, г. Санкт-Петербург, Ветеранов пр-кт., д.56"]
["20338","ЗАО \"Северо-Западный Центр Доказательной медицины\" г. Санкт-Петербург","191186, г. Санкт-Петербург, Кондратьевский пр-кт., д.62, корп.3,лит.А, пом.77-Н"]
["20338","ЗАО \"Северо-Западный Центр Доказательной медицины\" г. Санкт-Петербург","194355, г. Санкт-Петербург, Просвещения пр-кт., д.14, корп.4, лит.А, пом 30-Н"]
["20338","ЗАО \"Северо-Западный Центр Доказательной медицины\" г. Санкт-Петербург","188480, Ленинградская обл., Кингисеппский р-н., г. Кингисепп, ул. Воровского, д.40/15"]
["20338","ЗАО \"Северо-Западный Центр Доказательной медицины\" г. Санкт-Петербург","188800, Ленинградская обл., Выборгский р-н., г. Выборг, ул. Некрасова, д.7"]
["20338","ЗАО \"Северо-Западный Центр Доказательной медицины\" г. Санкт-Петербург","188300, Ленинградская обл., Гатчинский р-н., г. Гатчина, ул. Горького, д.3, пом.1"]
["78-20353","ООО \"Ришар\" г. Санкт-Петербург","199034, г. Санкт-Петербург, 14-я линия., д.7, лит. А"]
["20023","ООО \"АВА-ПЕТЕР\" (г. Санкт-Петербург)","199406, г. Санкт-Петербург, ул. Беринга, д.27, корп.1,лит.А, пом.10Н"]
["20351","ООО \"Стоматологический центр \"Стомус\" г. Санкт-Петербург","194291, г. Санкт-Петербург, Луначарского пр-кт., д.49"]
["2020","ДОГОВОР ЗАКРЫТ -ООО ЛПСЦ \"Эдем\"","190031, г. Санкт-Петербург, ул. Гороховая, д.61/1"]
["2020","ДОГОВОР ЗАКРЫТ -ООО ЛПСЦ \"Эдем\"","347602, г. Санкт-Петербург, 2-я линия., д.В.О., 19"]
["2034","ООО \"33 Зуб\" г. Санкт-Петербург","197372, г. Санкт-Петербург, ул. Ильюшина, д.1 - НЕТ ТЕРРИТОРИАЛЬНОГО ОТДЕЛЕНИЯ, корп.1 лит.А пом.14Н"]
["20087","СПб ГУЗ \"Городская больница №40\"  г. Сестрорецк","197706, г. Санкт-Петербург, г. Сестрорецк, ул. Володарского, д.24, лит. А"]
["20087","СПб ГУЗ \"Городская больница №40\"  г. Сестрорецк","197720, г. Санкт-Петербург, г. Зеленогорск, ул. Комсомольская, д.11а"]
["20087","СПб ГУЗ \"Городская больница №40\"  г. Сестрорецк","197720, г. Санкт-Петербург, г. Зеленогорск, Красных Командиров пр-кт., д.45, лит. В"]
["20331","ООО \"Дентал-Сервис\", Санкт-Петербург","196084, г. Санкт-Петербург, ул. Ломаная, д.11"]
["20237","ООО \"Рубин\", Санкт-Петербург","196135, г. Санкт-Петербург, ул. Типанова, д.8, лит. А"]
["20108","ГУЗ \"Городская больница №23\" г. Санкт-Петербург","192148, г. Санкт-Петербург, Елизарова пр-кт., д.32"]
["20284","ГУЗ \"Городская больница № 32\" г. Санкт-Петербург","191180, г. Санкт-Петербург, Лазаретный пер., д.4, корп.лит. А"]
["20086","СПб ГУЗ \"Городская Мариинская больница\" г. Санкт-Петербург","191104, г. Санкт-Петербург, Литейный пр-кт., д.56"]
["20207","СПб ГУЗ \"Николаевская больница\" г. Петродворец ","198510, г. Санкт-Петербург, г. Петродворец, ул. Константиновская, д.1, лит. А"]
["20288","ООО \"Американская медицинская клиника\" г. Санкт-Петербург","190000, г. Санкт-Петербург, Реки Мойки наб., д.78"]
["20201","СПБ ГУЗ \"Городская больница № 33\" г. Колпино","196653, г. Санкт-Петербург, г. Колпино, ул. Павловская, д.16, лит. А"]
["20350","СПб ГБУЗ \"Городская больница №15 \" г. Санкт-Петербург","198205, г. Санкт-Петербург, ул. Авангардная, д.4"]
["20118","СПБ ГУЗ  \"Городской клинический онкологический диспансер\"  г. Санкт-Петербург","197022, г. Санкт-Петербург, Березовая 2-я аллея., д.3/5"]
["20352","СПб ГУЗ \"ДЦ № 7\" г. Санкт-Петербург","191028, г. Санкт-Петербург, ул. Моховая, д.38"]
["20090","ООО \"Римед\" г. Санкт-Петербург","195009, г. Санкт-Петербург, ул. Академика Лебедева, д.15/1,лит А,пом.2-Н"]
["20077","ЗАО \"Санаторий \"Черная речка\" г. Санкт-Петербург","197729, г. Санкт-Петербург, п. Молодежное, Приморское ш., д.648"]
["20329","ООО \"Европейский медицинский центр \"ЮНИОН\"  (клиника Бэйби) г. Санкт-Петербург - ТОЛЬКО ЧЕРЕЗ ПУЛЬТ - ЗАЯВКА ОТОЗВАНА БЕЛОУСОВЫМ 29.07.2010","190031, г. Санкт-Петербург, ул. Гороховая, д.33, лит А"]
["2079","ООО Медицинское объединение \"ОНА\" г. Санкт-Петербург","185031, Респ. Карелия, г. Петрозаводск, ул. Кирова, д.40"]
["2079","ООО Медицинское объединение \"ОНА\" г. Санкт-Петербург","198013, г. Санкт-Петербург, Реки Фонтанки наб., д.110, лит.Б, корп.пом.8Н"]
["6978","ГБУЗ Тверской области \"Областная клиническая больница\" Тверь","170023, Тверская обл., Калининский р-н., г. Тверь, Санкт-Петербургское ш., д.105"]
["20338","Центр доказательной медицины г. Санкт-Петербург","198332, г. Санкт-Петербург, Ленинский пр-кт., д.88, лит.А, пом 9Н"]
["20211","ООО \"Евромед Клиник\" г. Санкт-Петербург","191124, г. Санкт-Петербург, Суворовский пр-кт., д.60"]
["20075","ОАО \"Санаторий \"Сестрорецкий курорт\"  г. Санкт-Петербург","197706, г. Санкт-Петербург, г. Сестрорецк, ул. Максима Горького, д.2"]
["20314","филиала ГУП \"Водоканал Санкт-Петербурга\" \"Медицинский центр\" г. Санкт-Петербург","191015, г. Санкт-Петербург, ул. Кавалергардская, д.42"]
["20080","ФГБУ \"НИИ детских инфекций ФМБА России\" г.Санкт-Петербург","0, г. Санкт-Петербург, ул. Профессора Попова, д.9"]
["20023","ООО \"АВА-ПЕТЕР\" (г. Санкт-Петербург)","191353, г. Санкт-Петербург, ул. Парадная, д.7"]
["69560","ГБУЗ \"Городская детская больница № 3\" г. Тверь","170003, Тверская обл., Калининский р-н., г. Тверь, Санкт-Петербургское ш., д.5"]
["20207","СПб ГУЗ \"Николаевская больница\" г. Петродворец","198510, г. Санкт-Петербург, г. Петергоф, ул. Царицынская, д.1, лит.А"]
["2012","ООО \"Фирма Вероника ЛТД\" (Санкт-Петербург)","197183, г. Санкт-Петербург, ул. Савушкина, д.8, корп.2 лит.А"]
["20207","СПб ГУЗ \"Николаевская больница\" г. Петродворец","198510, г. Санкт-Петербург, г. Петродворец, ул. Шахматова, д.12, корп.4,лит.Б"]
["20207","СПб ГУЗ \"Николаевская больница\" г. Петродворец","198510, г. Санкт-Петербург, г. Петродворец, Санкт-Петербургский пр-кт., д.20, лит. В"]
["20363","ООО \"Дункан СПб\", г. Санкт-Петербург","196631, г. Санкт-Петербург, Серебристый б-р., д.21"]
["2042","ООО \"Медицинский центр \"XXI век\" Косыгина 34\" г. Санкт-Петербург","195298, г. Санкт-Петербург, Косыгина пр-кт., д.34, корп.1, лит. А"]
["20069","СПб ГУЗ \"Клиническая ревматологическая больница №25\", Санкт-Петербург","190068, г. Санкт-Петербург, ул. Подьяческая Б., д.30"]
["78-20366","ООО \"Лаборатория здоровья \"ХХ I век\"","194044, г. Санкт-Петербург, Сампсониевский Б. пр-кт., д.45"]
["2018","СПб ГУЗ \"Городская Больница Святой Преподобномученицы Елизаветы\" (ГБ 3), Санкт-Петербург","195257, г. Санкт-Петербург, ул. Вавиловых, д.14"]
["2070","ООО \"Гранти-Мед\" г. Санкт-Петербург","194017, г. Санкт-Петербург, ул. Гаврская, д.15"]
["2008","В СТАДИИ РАСТОРЖЕНИЯ 01.10.2011г.- СПКК ФГУ \"НХМЦ им. Н.И. Пирогова\" Минздравсоцразвития России г.Санкт-Петербург","190020, г. Санкт-Петербург, ул. Циолковского, д.3"]
["2050","ООО\"Медицинский центр Одонт\" г. Санкт-Петербург","190031, г. Санкт-Петербург, ул. Казанская, д.44"]
["20352","СПб ГУЗ \"Диагностический  центр № 7\" (глазной) г. Санкт-Петербург - В СТАДИИ ЗАКЛЮЧЕНИЯ","191028, г. Санкт-Петербург, Литейный пр-кт., д.25"]
["2029","ОУ \"ЛДЦ  МИБС\" г. Санкт-Петербург","191144, г. Санкт-Петербург, ул. Советская 6-я, д.24-26/19-21, лит.А, корп.пом.1-Н, 2-Н"]
["20023","ООО \"АВА-ПЕТЕР\" (г. Санкт-Петербург)","160035, Вологодская обл., г. Вологда, ул. Предтеченская, д.65"]
["2042","ООО \"МЦ \" XXI век\" Марата 48\" г. Санкт-Петербург","191119, г. Санкт-Петербург, ул. Марата, д.48"]
["2029","ОУ \"ЛДЦ  МИБС\" г. Санкт-Петербург","194214, г. Санкт-Петербург, Удельный пр-кт., д.22, лит.А, часть здания 3-Н"]
["2029","ОУ \"ЛДЦ  МИБС\" г. Санкт-Петербург","196247, г. Санкт-Петербург, ул. Костюшко, д.2, лит.А, часть пом.2-Н"]
["20201","ГУЗ \"Городская больница № 33\" г. Санкт-Петербург","196653, г. Санкт-Петербург, г. Колпино, ул. Карла Маркса, д.23, лит.А"]
["20201","ГУЗ \"Городская больница № 33\" г. Санкт-Петербург","196653, г. Санкт-Петербург, г. Колпино, ул. Карла Маркса, д.21, лит.А"]
["20201","ГУЗ \"Городская больница № 33\" г. Санкт-Петербург","196653, г. Санкт-Петербург, г. Колпино, ул. Вавилова, д.3, лит.А"]
["20355","ООО \"Европейский Институт Здоровья  и Семьи\", Санкт-Петербург","197046, г. Санкт-Петербург, г. Колпино, Трудящихся б-р., д.35, стр.1"]
["6606","ООО \"Волна-Дента\" г.Великий Новгород","173003, Новгородская обл., Новгородский р-н., г. Великий Новгород, ул. Большая Санкт-Петербургская, д.44"]
["2034","ООО \"33 Зуб\" г. Санкт-Петербург","197022, г. Санкт-Петербург, Синопская наб., д.52 - ОФИС-НЕТ ТЕРРИТОРИАЛЬНОГО ОТДЕЛЕНИЯ"]
["2038","ГОУ ДПО \"СПб МАПО РОСЗДРАВА\" г. Санкт-Петербург","195196, г. Санкт-Петербург, Заневский пр-кт., д.1/82, лит.А"]
["20390","ФГУ \"НМХЦ им. Н.И.Пирогова\" Минздравсоцразвития России г. Санкт-Петербург","190103, г. Санкт-Петербург, ул. Циолковского, д.3"]
["20390","ФГУ \"НМХЦ им. Н.И.Пирогова\" Минздравсоцразвития России г. Санкт-Петербург","199004, г. Санкт-Петербург, Кадетская линия., д.13-15"]
["20390","ФГУ \"НМХЦ им. Н.И.Пирогова\" Минздравсоцразвития России г. Санкт-Петербург","196211, г. Санкт-Петербург, Юрия Гагарина пр-кт., д.24"]
["20026","СПб ГБУЗ \"Родильный дом №18\" г. Санкт-Петербург","193312, г. Санкт-Петербург, Солидарности пр-кт., д.6"]
["20318","ООО \"Научно-производственная Фирма \"ХЕЛИКС\" г. Санкт-Петербург","194044, г. Санкт-Петербург, Сампсониевский Б. пр-кт., д.20 А"]
["20261","ООО \"Наука-Бизнес-медицина \"ОНА\" г. Санкт-петербург","190002, г. Санкт-Петербург, Графский пер., д.7, корп.лит.А, кв.6"]
["20392","ООО \"Медицинский центр \"Аура\" г. Санкт-Петербург","193015, г. Санкт-Петербург, Суворовский пр-кт., д.36, корп.лит.А"]
["20393","ЗАО \"Неодент\" г. Санкт-Петербург","191025, г. Санкт-Петербург, Металлистов пр-кт., д.58"]
["20394","ООО \"Нодент-Приморский\" г. Санкт-Петербург","191025, г. Санкт-Петербург, ул. Яхтенная, д.7"]
["2052","ООО \"Стома\" г. Санкт-Петербург","199106, г. Санкт-Петербург, 26-я линия."]
["78-20026","СПб ГУЗ \"Родильный дом №18\" г.Санкт-Петербург","193312, г. Санкт-Петербург, Солидарности пр-кт., д.6, корп.лит.А, кв.21"]
["20395","ООО \"Центр оздоровления\" г. Санкт-Петербург","197022, г. Санкт-Петербург, Реки Карповки наб., д.23, корп.А"]
["20319","ООО \"Мастерская здоровья\" г. Санкт-Петербург","195197, г. Санкт-Петербург, Полюстровский пр-кт., д.68 А, корп.лит. Б"]
["6951","ГБОУ ВПО Тверская ГМА Минздрава России  Тверь","170036, Тверская обл., Калининский р-н., г. Тверь, Санкт-Петербургское ш., д.115"]
["20376","ООО \"Стоматолог\" г. Санкт-Петребург","198264, г. Санкт-Петербург, ул. Комсомольская 2-я, д.24/3"]
["20382","ООО \"ЭКСПРЕСС-СЕРВИС\" г. Санкт-Петребург","190005, г. Санкт-Петербург, Реки Фонтанки наб., д.132, корп.лит.А"]
["20383","СПб ГУЗ \"Городская стоматологическая поликлиника № 23\" г. Санкт-Петербург","192238, г. Санкт-Петербург, ул. Пражская, д.19, корп.1 лит. А"]
["20384","СОМД Фонд \"Здоровье нации\" г. Санкт-Петербург","195196, г. Санкт-Петербург, Заневский пр-кт., д.15"]
["20373","ООО \"Меридент\" г. Санкт-Петербург","197022, г. Санкт-Петербург, Каменоостровский пр-кт., д.39, корп.6Н"]
["20009","ООО \"Международная кдиника MEDEM\" г. Санкт-Петербург","191025, г. Санкт-Петербург, ул. Марата, д.6, лит. а"]
["20396","ООО \"Таурас-Мед\" г. Санкт-Петербург","197374, г. Санкт-Петербург, дор. Торфяная, д.9"]
["20314","ГУП \"Водоканал Санкт-Петербурга\", г. Санкт-Петербург","196084, г. Санкт-Петербург, Московский пр-кт., д.103, корп.2"]
["20314","ГУП \"Водоканал Санкт-Петербурга\", г. Санкт-Петербург","191015, г. Санкт-Петербург, ул. Шпалерная, д.56, корп.лит.АК"]
["20014","ЗАО \"Дентал Палас\" (г. Санкт-Петербург)","197022, г. Санкт-Петербург, ул. Петропавловская, д.4"]
["20018","ООО \"Медика\" г. Санкт-Петербург","191186, г. Санкт-Петербург, Невский пр-кт., д.22-24, пом.5Н, лит.А"]
["2074","ЗАО \"Фирма \"ЮЛАНД\" г. Санкт-Петербург","198262, г. Санкт-Петербург, ул. Лени Голикова, д.3, корп.литер А, кв.9"]
["20031","ООО \"ОксиСмайл\" г. Санкт-Петербург","191186, г. Санкт-Петербург, ул. Конюшенная Б., д.3"]
["78-20381","СПб ГУЗ \"Городская поликлиника № 114\" г. Санкт-Петербург","197374, г. Санкт-Петербург, ул. Школьная, д.116, корп.1"]
["20061","СПб ГБУЗ \"Городская больница № 26\" г. Санкт-Петербург","196247, г. Санкт-Петербург, ул. Костюшко, д.2"]
["20402","ООО \"ММЦ \"СОГАЗ\" г. Санкт-Петербург","198035, г. Санкт-Петербург, Конюшенный пер., д.8"]
["20386","ООО \"Стоматология Никольский\" г. Санкт-Петербург","190068, г. Санкт-Петербург, Римского-Корсакова пр-кт., д.29"]
["20400","Санкт-Петербургский филиал ФГБМУ \"Медицинский центр Минобороны России\"  г. Санкт-Петербург","198515, г. Санкт-Петербург, Театральная аллея., д.15"]
["20401","ООО \"Мариам  - 1\" г. Санкт-Петербург","190070, г. Санкт-Петербург, ул. Ярослава Гашека, д.2, кв.262"]
["20356","ООО \"КЛАСС-Ассист\" г. Санкт-Петербург","190000, г. Санкт-Петербург, ул. Якубовича, д.8, помещ.3Н"]
["20402","ООО \"ММЦ \"СОГАЗ\" г. Санкт-Петербург","191186, г. Санкт-Петербург, Чебоксарский пер., д.1/6, корп.лит.А"]
["20217","ЗАО \"КардиоКлиника\" г. Санкт-Петербург","196105, г. Санкт-Петербург, ул. Кузнецовская, д.25"]
["20397","ООО \"Стоматологическая фирма \"КардиоДент\" г. Санкт-Петербург","196105, г. Санкт-Петербург, ул. Кузнецовская, д.25, корп.лит.А"]
["2099","ООО \"НИЛЦ \"Деома\" г.Санкт-Петербург","199178, г. Санкт-Петербург, Большой ВО пр-кт., д.49-51, "]
["20269","ООО \"Клиника \"Андрос\" г. Санкт-Петербург","197136, г. Санкт-Петербург, Ленина пл., д.34 А"]
["20116","ООО \"Пандент Про\" г. Санкт-Петербург","191014, г. Санкт-Петербург, Литейный пр-кт., д.45/8"]
["20391","ДОГОВОР ЗАКРЫТ  - ООО \"БалтЗдрав\" г. Санкт-Петербург","097022, г. Санкт-Петербург, ул. Маршала Говорова, д.37"]
["20088","Поликлиника №1 РАН (г.Санкт-Петербург)","199034, г. Санкт-Петербург, Университетская наб., д.5"]
["20096","  г. Санкт-Петербург","199178, г. Санкт-Петербург, Средний пр-кт., д.48/27"]
["20113","ФГБУ \"СПб НИПНИ им. В.М. Бехтерева\" Минздрава  России г. Санкт-Петербург","192019, г. Санкт-Петербург, ул. Бехтерева, д.3"]
["20377","СПб ГУЗ \"Городская поликлиника № 46\" г. Санкт-Петербург","192174, г. Санкт-Петербург, ул. Седова, д.92, корп.2"]
["2038","ДОГОВОР ЗАКРЫТ 12.10.2011 г. - ГОУ ДПО \"СПб МАПО Росздрава\" г.Санкт-Петербург","191015, г. Санкт-Петербург, ул. Кирочная, д.41"]
["2000","ГУЗ \"Городская поликлиника 83\" (Санкт-Петербург)","197198, г. Санкт-Петербург, Большой ПС пр-кт., д.10"]
["20055","СПб ГУЗ \"Детская городская больница №2 святой Марии Магдалины\", Санкт-Петербург","199053, г. Санкт-Петербург, 14-я линия., д.57"]
["20371","ФГУ \"СПб НПЦ медико-социальной экспертизы, протезирования и реабилитации инвалидов им. Г.А.Альбрехта ФМБА\"","195067, г. Санкт-Петербург, ул. Бестужевская, д.50"]
["20380","ООО \"Единый медицинский центр\" г. Санкт-Петербург","191124, г. Санкт-Петербург, ул. Красного Текстильщика, д.15, корп.лит А"]
["20398","ООО «Нейрохирургический центр им. профессора Г.С. Тиглиева \"Новые технологии\"» г. Санкт-Петербург","194291, г. Санкт-Петербург, Культуры пр-кт., д.4 лит. А"]
["20289","ЗАО \"МЕКО\" г. Санкт-Петербург","199048, г. Санкт-Петербург, Московский пр-кт., д.186"]
["2036","ООО Научно-производственное предприятие \"ИммуноБиоСервис\" г. Санкт-Петербург","196158, г. Санкт-Петербург, Московское ш., д.30"]
["2042","АНО \"Медицинский центр\"  XXI век\" г. Санкт-Петербург","197348, г. Санкт-Петербург, Коломяжский  пр-кт., д.28"]
["78-2068","СПб ГУЗ \"Родильный дом № 9\" г. Санкт-Петербург","196158, г. Санкт-Петербург, ул. Орджоникидзе, д.47"]
["20374","ООО фирма \"Пульс-Сервис\" г. Санкт-Петребург","191036, г. Санкт-Петербург, Орловский пер., д.1/4"]
["2052","ООО \"Стома\" г. Санкт-Петербург","196621, г. Санкт-Петербург, Московский пр-кт., д.195. лит-А НЕТ ТЕРРИТОРИАЛЬНОГО ОТДЕЛЕНИЯ"]
["2052","ООО \"Стома\" г. Санкт-Петербург","196655, г. Санкт-Петербург, Богатырский пр-кт., д.25 - НЕТ ТЕРРИТОРИАЛЬНОГО ОТДЕЛЕНИЯ"]
["2052","ООО \"Стома\" г. Санкт-Петербург","198320, г. Санкт-Петербург, ул. Савушкина, д.135 - НЕТ ТЕРРИТОРИАЛЬНОГО ОТДЕЛЕНИЯ"]
["20365","ООО \"Центр лучевой диагнотики и магнитно-резонансной томографии Санкт-Петербурга\" г. Санкт-Петербург","197374, г. Санкт-Петербург, дор. Торфяная, д.9, корп.3"]
["20087","СПб ГУЗ \"Городская больница №40\"  ","197706, г. Санкт-Петербург, г. Сестрорецк, ул. Борисова, д.9"]
["20087","СПб ГУЗ \"Городская больница №40\"  г. Сестрорецк","197706, г. Санкт-Петербург, г. Сестрорецк, ул. Инструментальщиков, д.11, лит.А"]
["20087","СПб ГУЗ \"Городская больница №40\"  г. Сестрорецк","197758, г. Санкт-Петербург, п. Песочный, ул. Ленинградская, д.52, лит.А"]
["20237","ООО \"Аметист\" , Санкт-Петербург","196105, г. Санкт-Петербург, ул. Благодатная, д.18, корп.лит.А"]
["20370","ГБУЗ \"Консультативно-диагностическая поликлиника № 1 Приморского района\" г. Санкт-Петербург","197183, г. Санкт-Петербург, Приморский пр-кт., д.90"]
["20253","АНО \"Отделение семейной медицины\" г. Санкт-Петербург","197022, г. Санкт-Петербург, ул. Профессора Попова, д.27"]
["20228","ЗАО \"Центральная Управляющая Компания \"Меньшиковский Форпост\" г. Ломоносов","188512, г. Санкт-Петербург, г. Ломоносов, Ораниенбаумский пр-кт., д.39 Б"]
["2083","ООО\"Стоматологическая фирма \"32\" г. Санкт-Петербург","197371, г. Санкт-Петербург, Комендантский пр-кт., д.25, корп.1"]
["20043","ООО \"Клиника \"Аллергомед\", Санкт-Петербург","191025, г. Санкт-Петербург, Московский пр-кт., д.109"]
["78-2007","СПб ГУЗ \"Городская поликлиника №40\" (для творческих работников)  г.Санкт-Петербург","191025, г. Санкт-Петербург, Невский пр-кт., д.86"]
["20401","ООО \"Мариам  - 1\" г. Санкт-Петербург","197704, г. Санкт-Петербург, г. Пушкин, ул. Ленинградская, д.1, корп.лит.А, кв.8"]
["20100","ООО \"Смайл\", Санкт-Петербург","191002, г. Санкт-Петербург, ул. Марата, д.29"]
["20285","СПб ГБУЗ \"Городская поликлиника №51\", Санкт-Петербург","196211, г. Санкт-Петербург, Космонавтов пр-кт., д.33"]
["20308","ООО \"Приоритет\" г. Колпино","0, г. Санкт-Петербург, г. Колпино, ул. Финляндская, д.23, лит.Л, пом.3Н"]
["20421","18.09.2013 - ДОГОВОР В СТАДИИ РАСТОРЖЕНИЯ  ООО Клиника \"Медпрактика\"","190013, г. Санкт-Петербург, ул. Можайская, д.41"]
["20126","ООО \"БалтЗдрав на Дыбенко\" (г. Санкт-Петербург)","197762, г. Санкт-Петербург, ул. Дыбенко, д.25, корп.1"]
["20127","ООО \"БалтЗдрав на Говорова\"","191028, г. Санкт-Петербург, ул. Маршала Говорова, д.37, корп 2"]
["2054","ГБОУ ВПО СПбГПМА Минздравсоцразвития г.Санкт-Петербург","194100, г. Санкт-Петербург, ул. Литовская, д.2 НЕТ ТЕРРИТОРИАЛЬНОГО ОТДЕЛЕНИЯ"]
["20423","ООО «МедЛаб СПб» г. Санкт-Петербург","192029, г. Санкт-Петербург, Обуховской обороны пр-кт., д.71, корп.лит. А"]
["20423","ООО «МедЛаб СПб» г. Санкт-Петербург","192007, г. Санкт-Петербург, ул. Тамбовская, д.46, корп.2 лит Б"]
["20423","ООО «МЦ \"МедЛаб» г. Санкт-Петербург","196070, г. Санкт-Петербург, Славы пр-кт., д.55, корп.лит А"]
["20423","ООО «МЦ МедЛаб Аурум» г. Санкт-Петербург","191014, г. Санкт-Петербург, ул. Некрасова, д.11, корп.лит. Б"]
["20423","ООО «МедЭстетикаЦентр Лаборатория» г. Санкт-Петербург","192177, г. Санкт-Петербург, ул. Караваевская, д.26, корп.1 лит. А"]
["20423","ООО «МедЛаб Плюс» г. Санкт-Петербург","197341, г. Санкт-Петербург, Фермское ш., д.32, лит А, кв.39"]
["20423","ООО «МедЛаб Плюс» г. Санкт-Петербург","196135, г. Санкт-Петербург, ул. Фрунзе, д.1 лит А, кв.9"]
["20415","ГБОУ ВПО СЗГМУ им. И.И.Мечникова Минздравсоцразвития России  г. Санкт-Петербург","191015, г. Санкт-Петербург, ул. Кирочная, д.41"]
["20259","ООО \"Эфа\" г. Санкт-Петербург","191028, г. Санкт-Петербург, ул. Чайковского, д.25"]
["20285","СПб ГБУЗ \"Городская поликлиника №51\", Санкт-Петербург","196211, г. Санкт-Петербург, ул. Орджоникидзе, д.38 лит.А"]
["20285","СПб ГБУЗ \"Городская поликлиника №51\", Санкт-Петербург","196233, г. Санкт-Петербург, Космонавтов пр-кт., д.54 лит. А"]
["20429","Государственное бюджетное учреждение \"Санкт - Петербургский  научно - исследовательский институт скорой помощи имени И.И. Джанилидзе\"","г. Санкт-Петербург, ул. Будапештская, д.3, корп.лит. А"]
["2050","ООО \"Диадент\" г.Санкт-Петербург","г. Санкт-Петербург, ул. Бронницкая, д.24"]
["2050","ООО \"Диана\" г.Санкт-Петербург","198320, г. Санкт-Петербург, Светлановский пр-кт., д.70"]
["2050","ООО \"НЕСКО\" клиника \"Гера\" г.Санкт-Петербург","196601, г. Санкт-Петербург, Авиаконструкторов пр-кт., д.47"]
["2050","ООО \"ОксиСмайл\" г.Санкт-Петербург","г. Санкт-Петербург, Большой ПС пр-кт., д.74"]
["2050","ООО \"ОксиСмайл\" г.Санкт-Петербург","198517, г. Санкт-Петербург, г. Пушкин, ул. Железнодорожная, д.24"]
["2050","ООО \"Азбука Здоровья\" г.Санкт-Петербург","198218, г. Санкт-Петербург, ул. Композиторов, д.22, корп.2"]
["2050","ООО \"Life Dent\" г.Санкт-Петербург","188511, г. Санкт-Петербург, ул. Парашютная, д.23, корп.1"]
["2050","ООО \"Азбука Зоровья\" г.Санкт-Петербург","197706, г. Санкт-Петербург, ул. Маяковского, д.1/96, корп.лит А"]
["20045","ООО \"Лабтест\" (ЧП Боговская), Санкт-Петербург","191193, г. Санкт-Петербург, Дмитровский пер., д.17, корп.лит.А"]
["20045","ООО \"Лабтест\" (ЧП Боговская), Санкт-Петербург","192212, г. Санкт-Петербург, ул. Будапештская, д.17, корп.3, лит. А, кв.13"]
["20417","ООО \"Медэкспресс-сервис\" г. Санкт-Петербург","0, г. Санкт-Петербург, ул. Гороховая, д.14/26"]
["20423","ООО «МедЛаб СПб» г. Санкт-Петербург","197341, г. Санкт-Петербург, Фермское ш., д.32"]
["20424","ООО «Специалист» г. Санкт-Петербург","191025, г. Санкт-Петербург, Поварской пер., д.11, лит. А, корп.пом. 5Н"]
["20041","ООО \"ЕМС\", г. Санкт-Петербург","194292, г. Санкт-Петербург, ул. Победы, д.17, корп.лит.А"]
["20041","ООО \"ЕМС\", г. Санкт-Петербург","<НЕ ОПРЕДЕЛЕН>"]
["20416","ООО «Альфамед-ст» г. Санкт-Петербург","191024, г. Санкт-Петербург, Невский пр-кт., д.135, корп.лит. А"]
["20427","ООО \"Приор\" г. Санкт-Петербург","191104, г. Санкт-Петербург, Литейный пр-кт., д.21"]
["2042","АНО \"Медицинский центр\"  XXI век\" г. Санкт-Петербург","192289, г. Санкт-Петербург, Моравский пер., д.3, корп.2"]
["20417","ООО \"Альянс Евразия Медицина\" г. Санкт-Петербург","188480, Ленинградская обл., Кингисеппский р-н., г. Кингисепп, Крикковское ш., д.9"]
["20417","ООО \"Альянс Евразия Медицина\" г. Санкт-Петербург","0, г. Санкт-Петербург, ул. Варшавская, д.59"]
["20390","СПКК ФГБУ \"НМХЦ им. Н.И.Пирогова\" Минздравсоцразвития России (см. код 2008)  г. Санкт-Петербург","190103, г. Санкт-Петербург, Реки Фонтанки наб., д.154"]
["20023","ООО \"АВА-ПЕТЕР\" (г. Санкт-Петербург)","196211, г. Санкт-Петербург, Юрия Гагарина пр-кт., д.24, корп.1"]
["20023","ООО \"АВА-ПЕТЕР\" (г. Санкт-Петербург)","197706, г. Санкт-Петербург, г. Сестрорецк, ул. Борисова, д.10"]
["20023","ООО \"АВА-ПЕТЕР\" (г. Санкт-Петербург)","198217, г. Санкт-Петербург, ул. Танкиста Хрустицкого, д.9"]
["20011","ООО \"Дентос\" г.Санкт-Петербург","109196, г. Санкт-Петербург, Малоохтинский пр-кт., д.86 А, корп.2"]
["20022","ДОГОВОР ЗАКРЫТ 01.07.10г. - ФГУП НИИ ПММ Филиал \"Клиника \"Семейная медицина\" г. Санкт-Петербург","196143, г. Санкт-Петербург, Юрия Гагарина пр-кт., д.65"]
["78-20398","ООО \"Нейрохирургический центр имени профессора Г.С.Тиглиева \"Новые технологии\" г. Санкт-Петербург","194291, г. Санкт-Петербург, Культуры пр-кт., д.4 лит.А"]
["78-20396","ООО \"Таурас-Мед\" г. Санкт-Петербург","197374, г. Санкт-Петербург, дор. Торфяная, д.9, корп.3 лит В"]
["20122","ФГБУ \"ФЦСКЭ им. В.А. Алмазова\" Минздрава России г. Санкт-Петербург","197755, г. Санкт-Петербург, Пархоменко пр-кт., д.15"]
["20118","СПБ ГУЗ  \"Городской клинический онкологический диспансер\"  г. Санкт-Петербург","198255, г. Санкт-Петербург, Ветеранов пр-кт., д.56, лит. А"]
["20338","ЗАО \"Северо-Западный Центр Доказательной медицины\" г. Санкт-Петербург","173000, Новгородская обл., Новгородский р-н., г. Великий Новгород, ул. Славная, д.45/24"]
["20338","ЗАО \"Северо-Западный Центр Доказательной медицины\" г. Санкт-Петербург","167002, Респ. Коми, г. Сыктывкар, ул. Морозова, д.111/1"]
["20338","ЗАО \"Северо-Западный Центр Доказательной медицины\" г. Санкт-Петербург","197760, г. Санкт-Петербург, г. Кронштадт, Ленина пр-кт., д.13, лит.А"]
["20338","ЗАО \"Северо-Западный Центр Доказательной медицины\" г. Санкт-Петербург","175040, Новгородская обл., Старорусский р-н., г. Старая Русса, ул. Минеральная, д.24"]
["2057","ЛПУ \"Родильный дом №2\", Санкт-Петербург","191123, г. Санкт-Петербург, Чернышевского пр-кт., д.13, лит. А"]
["20415","ГБОУ ВПО СЗГМУ им. И.И.Мечникова Минздравсоцразвития России  г. Санкт-Петербург","193091, г. Санкт-Петербург, Октябрьская наб., д.6, корп.2, лит. А"]
["20415","ГБОУ ВПО СЗГМУ им. И.И.Мечникова Минздравсоцразвития России  г. Санкт-Петербург","195067, г. Санкт-Петербург, Пискаревский пр-кт., д.47, корп.лит. М"]
["20415","ГБОУ ВПО СЗГМУ им. И.И.Мечникова Минздравсоцразвития России  г. Санкт-Петербург","194291, г. Санкт-Петербург, Просвещения пр-кт., д.45, корп.лит. А"]
["20415","ГБОУ ВПО СЗГМУ им. И.И.Мечникова Минздравсоцразвития России  г. Санкт-Петербург","194291, г. Санкт-Петербург, ул. Сантьяго-де-Куба, д.1/28, корп.лит. А"]
["20415","ГБОУ ВПО СЗГМУ им. И.И.Мечникова Минздравсоцразвития России  г. Санкт-Петербург","195196, г. Санкт-Петербург, Заневский пр-кт., д.1/82, корп.лит. А"]
["2042","АНО \"Медицинский центр\"  XXI век\" г. Санкт-Петербург","196135, г. Санкт-Петербург, ул. Гастелло, д.22 лит. А"]
["2042","ООО \"МЦ \"XXI век\" Б.Пушкарская 20\"","197198, г. Санкт-Петербург, ул. Пушкарская Б., д.20 лит. А"]
["20292","ООО \"ЕИЗС\" г. Санкт-Петербург","г. Санкт-Петербург, г. Пушкин, ул. Вячеслава Шишкова, д.28, корп.3, пом. 1Н"]
["2050","ООО \"Дентал\" ","197762, г. Санкт-Петербург, г. Кронштадт, ул. Ленинградская, д.14, литА, пом.2Н"]
["2071","ЗАО \"Поликлинический комплекс\" г. Санкт-Петербург","197738, г. Санкт-Петербург, Римского-Корсакова пр-кт., д.87/21 , корп.лит. А"]
["20411","ОАО \"Городская стоматологическая поликлиника № 1\"","г. Санкт-Петербург, Невский пр-кт., д.46"]
["20302","ООО \"Семейная стоматология\". Санкт-Петербург","197373, г. Санкт-Петербург, Комендантский пр-кт., д.34, корп.1. лит.В"]
["20440","ООО \"МЦ Эко-безопасность\". Санкт-Петербург","191119, г. Санкт-Петербург, ул. Достоевского, д.д.40-44, лит.А, пом 6-Н"]
["20463","ООО \"Дантист Плюс\" ","190020, г. Санкт-Петербург, ул. Перекопская, д.5, корп.А, кв.8"]
["20423","ООО «МедЛаб СПб» г. Санкт-Петербург","197755, г. Санкт-Петербург, Энгельса пр-кт., д.126/А, корп.1, кв.35"]
["20032","Санкт-Петербургское государственное учреждение здравоохранения \"Родильный дом №16\"","192283, г. Санкт-Петербург, ул. Балканская М., д.54"]
["20442","ООО \"М24\"","192281, г. Санкт-Петербург, Балканская пл., д.5 лит АД"]
["20305","АНО \"МЦ\"Мир здоровья\" Колпино","196657, г. Санкт-Петербург, г. Колпино, ул. Машиностроителей, д.10"]
["20353","ООО «РИШАР», Санкт-Петербург","196655, г. Санкт-Петербург, Просвещения пр-кт., д.33, корп.лит. А, пом. 42Н"]
["20457","ООО \"Астра 3\" Санкт-Петербург","197706, г. Санкт-Петербург, Тихорецкий пр-кт., д.22/13"]
["20458","СПб ГБУЗ \"Городская поликлиника № 44\" Санкт-Петербург","г. Санкт-Петербург, ул. Будапештская, д.20"]
["20318","ООО \"Научно-производственная Фирма \"ХЕЛИКС\" г. Санкт-Петербург","198320, г. Санкт-Петербург, Энтузиастов пр-кт., д.38, корп.литер А, пом 5-Н"]
["20318","ООО \"Научно-производственная Фирма \"ХЕЛИКС\" г. Санкт-Петербург","196105, г. Санкт-Петербург, ул. Советская 5-я, д.11-13, корп.пом 11-Н"]
["20318","ООО \"Научно-производственная Фирма \"ХЕЛИКС\" г. Санкт-Петербург","197110, г. Санкт-Петербург, Реки Карповки наб., д.5, корп.лит Л, пом 11-Н, 1 этаж, пом 9-Н, 2 этаж"]
["20448","ООО Медицинский Центр \"Детский доктор\"","198515, г. Санкт-Петербург, Комендантский пр-кт., д.51"]
["20100","ООО \"Смайл\", Санкт-Петербург","190005, г. Санкт-Петербург, ул. Хасанская, д.14, корп.1"]
["20443","В СТАДИИ РАССТОРЖЕНИЯ - ООО \"Клиника Позвоночника\"","197755, г. Санкт-Петербург, Энгельса пр-кт., д.27, корп.литер Т"]
["20444","ООО \"Клиника Позвоночника на Авиаконструкторов\"","197373, г. Санкт-Петербург, Авиаконструкторов пр-кт."]
["20237","\"АПОЛЛОНИЯ Дентал Клиник\" , Санкт-Петербург","196140, г. Санкт-Петербург, ул. Ропшинская, д.18"]
["20237","\"Свежее Дыхание\" , Санкт-Петербург","197755, г. Санкт-Петербург, Энгельса пр-кт., д.133"]
["20237","Клиника \"Комбат\" , Санкт-Петербург","198515, г. Санкт-Петербург, п. Стрельна, Санкт-Петербургское ш., д.82, корп.А"]
["20237","\"Прогрессивная стоматология\"  Санкт-Петербург","г. Санкт-Петербург, ул. Народная, д.68"]
["2082","ООО\"Ортодонтический центр \"Дент Идеал Плюс\" г. Санкт-Петербург","191014, г. Санкт-Петербург, ул. Кирочная, д.48"]
["20433","ГБУЗ  \"Женская консультация № 22\". Санкт-Петербург","194354, г. Санкт-Петербург, ул. Сикейроса, д.10, корп.литер В"]
["20370","ГБУЗ \"КДП № 1\" г. Санкт-Петербург","197341, г. Санкт-Петербург, Поликарпова аллея., д.6, корп.2, лит. А, кв.31"]
["20246","ООО \"Здоровый век\" Санкт-Петербург","194354, г. Санкт-Петербург, Энгельса пр-кт., д.109, корп.2"]
["20331","ООО \"Дентал-Сервис\", Санкт-Петербург","197374, г. Санкт-Петербург, ул. Савушкина, д.140, корп.лит А. пом 13Н"]
["20331","ООО \"Дентал-Сервис\", Санкт-Петербург","191167, г. Санкт-Петербург, ул. Коллонтай, д.31, корп.2 лит А, пом 31Н"]
["20331","ООО \"Дентал-Сервис\", Санкт-Петербург","196621, г. Санкт-Петербург, Московский пр-кт."]
["20274","ООО \"НЕСКО\"  клиника \"Гера\"","196601, г. Санкт-Петербург, Авиаконструкторов пр-кт., д.д. 47, лит А"]
["20449","ООО \"Стомадеус\"","191186, г. Санкт-Петербург, ул. Конюшенная Б., д.3"]
["20450","ООО \"Стомадеус-Восстания,11\" ","191036, г. Санкт-Петербург, ул. Восстания, д.11 лит.А, пом. 15-Н"]
["20451","ООО \"ВайтДент\"","197350, г. Санкт-Петербург, ул. Нахимова, д.7, корп.2"]
["20452","ООО \"Эвита\"","188511, г. Санкт-Петербург, ул. Парашютная, д.23, корп.1"]
["20453","ООО \"СГ Тамбовская 13\"","192007, г. Санкт-Петербург, ул. Тамбовская, д.13 литА"]
["20237","\"Азбука Здоровья\"  Санкт-Петербург","г. Санкт-Петербург, Невский пр-кт., д.7"]
["20237","\"Азбука Здоровья\" , Санкт-Петербург","198218, г. Санкт-Петербург, ул. Композиторов, д.22, корп.2"]
["20237","\"Семейная Стоматология\" , Санкт-Петербург","197372, г. Санкт-Петербург, Комендантская пл., д.8"]
["20237","\"Семейная Стоматология\", Санкт-Петербург","198515, г. Санкт-Петербург, Комендантский пр-кт., д.34"]
["20237","ООО \"Рубин\", Санкт-Петербург","196607, г. Санкт-Петербург, ул. Доблести, д.26, корп.1. пом. 12Н"]
["20237","\"Айсберг+\" , Санкт-Петербург","197755, г. Санкт-Петербург, Октябрьская наб., д.46, корп.3"]
["20237","\"Айсберг+\" , Санкт-Петербург","196601, г. Санкт-Петербург, Авиаконструкторов пр-кт., д.5, корп.2/2. пом.30 м. "]
["20237","\"Денталия\" , Санкт-Петербург","191180, г. Санкт-Петербург, Казачий Б. пер., д.11"]
["20237","\"Колибри\" , Санкт-Петербург","197198, г. Санкт-Петербург, ул. Зверинская, д.26"]
["20237","Мудрая Стматология \"София\", Санкт-Петербург","190005, г. Санкт-Петербург, ул. Красноармейская 5-я"]
["20237","Клиника \"Доктор\" , Санкт-Петербург","198510, г. Санкт-Петербург, Стачек пр-кт., д.55"]
["20237","Клиника \"Петро-Дент +\" , Санкт-Петербург","198095, г. Санкт-Петербург, Лермонтовский пер., д.54, корп.литер А к. 101"]
["20237","\"ОХТА ДЕНТАЛ\", Санкт-Петербург","г. Санкт-Петербург, Большеохтинский пр-кт., д.10"]
["20237","\"Окси Смайл\" , Санкт-Петербург","198517, г. Санкт-Петербург, г. Пушкин, ул. Железнодорожная, д.24"]
["20237","Клиника \"Верно\" , Санкт-Петербург","198218, г. Санкт-Петербург, ул. Советская 8-я, д.17-19"]
["20237","\"Медсервис-ГС\" , Санкт-Петербург","188512, г. Санкт-Петербург, Тореза пр-кт., д.44, корп.к. 2, м. "]
["20237","\"Вашъ Дантистъ\" , Санкт-Петербург","г. Санкт-Петербург, Большой ПС пр-кт., д.82"]
["20237","ООО \"МедСоюз\", Санкт-Петербург","191186, г. Санкт-Петербург, ул. Конюшенная Б., д.17"]
["20237","\"Александрия\" , Санкт-Петербург","190005, г. Санкт-Петербург, ул. Купчинская, д.3, корп.2"]
["20237","Клиника \"Ария\", Санкт-Петербург","197341, г. Санкт-Петербург, ул. Беринга, д.23, корп.2"]
["2050","ООО \"Стомадеус\" г.Санкт-Петербург.НЕТ ТЕРРИТ.ОТДЕЛЕНИЯ","191186, г. Санкт-Петербург, ул. Конюшенная Б., д.3"]
["2050","ООО \"СГ Тамбовская 13\" клиника \"Галерея\"  г.Санкт-Петербург","192007, г. Санкт-Петербург, ул. Тамбовская, д.13, корп.лит А"]
["2050","ООО \"НЕСКО\" клиника \"Гера\" г.Санкт-Петербург","197720, г. Санкт-Петербург, ул. Кантемировская, д.22"]
["2050","ООО \"Медицинский центр \"Одонт\" г.Санкт-Петербург","198205, г. Санкт-Петербург, ул. Зои Космодемьянской, д.11"]
["2050","ООО \"Медицинский центр Константиновский\" г.Санкт-Петербург","198515, г. Санкт-Петербург, п. Стрельна, ул. Фронтовая, д.3"]
["2050","ООО \"Медицинский центр \"Одонт\" г.Санкт-Петербург","г. Санкт-Петербург, ул. Варшавская, д.43"]
["2050","ООО \"Сити плюс\" г.Санкт-Петербург","г. Санкт-Петербург, ул. Веденеева, д.2, корп.Лит А"]
["20353","ООО «РИШАР», Санкт-Петербург","197372, г. Санкт-Петербург, Богатырский пр-кт., д.26, корп.1, лит А, пом 28 Н"]
["20353"," ООО «РИШАР», Санкт-Петербург","191011, г. Санкт-Петербург, Морская наб., д.21, корп.1, лит А, часть пом. 2 Н, пом. 1-26"]
["20353","ООО «РИШАР», Санкт-Петербург","197739, г. Санкт-Петербург, Ленинский пр-кт., д.108, корп.1, лит А, пом. 12Н"]
["2042","ООО \"МЦ\"  XXI век\" Щербакова 11\" г. Санкт-Петербург","197349, г. Санкт-Петербург, ул. Щербакова, д.11, пом.8Н"]
["2080","ООО Центр МРТ \"ОНА\" (Санкт-Петербург)","196631, г. Санкт-Петербург, Серебристый б-р., д.20, корп.литА"]
["20302","ООО \"Семейная стоматология\". Санкт-Петербург (Комендантский)","197227, г. Санкт-Петербург, Комендантская пл., д.8, корп.лит. А, "]
["20311","\"Риат СПб\" Санкт-Петербург","197758, г. Санкт-Петербург, Ланское ш., д.14-1"]
["20237","\"Мудрая стоматология\", Санкт-Петербург","196621, г. Санкт-Петербург, Московский пр-кт., д.НЕТ ТЕРИТОРИАЛЬНОГО ОТДЕЛЕНИЯ "]
["20427","ООО \"Петробалт\" г. Санкт-Петербург","191014, г. Санкт-Петербург, ул. Фонтанная, д.3"]
["20427","ООО \"ООО \"Петробалт\" г. Санкт-Петербург","г. Санкт-Петербург, ул. Некрасова, д.58, корп.лит.А, пом. 16Н"]
["20427"," \"ООО \"Бриз\" г. Санкт-Петербург","196655, г. Санкт-Петербург, Просвещения пр-кт., д.72, корп.лит А, пом. 16Н "]
["20427","ООО \"Арго\" г. Санкт-Петербург","198515, г. Санкт-Петербург, Комендантский пр-кт., д.17, корп. 1, лит.А, пом.22Н"]
["20427","ООО \"Приор\" г. Санкт-Петербург","г. Санкт-Петербург, Гражданский пр-кт., д.114, корп.1, лит.А, пом.23Н"]
["20427","ООО \"Арго\" г. Санкт-Петербург","196655, г. Санкт-Петербург, Просвещения пр-кт., д.54, корп.лит.А, пом.6-Н"]
["20427","ООО \"Приор\" г. Санкт-Петербург","196655, г. Санкт-Петербург, Просвещения пр-кт., д.21"]
["20427","ООО \"Приор\" г. Санкт-Петербург","197755, г. Санкт-Петербург, Энгельса пр-кт., д.139/21, , корп.лит.А, пом.72Н"]
["20305","В СТАДИИ ЗАКЛЮЧЕНИЯ - АНО \"МЦ\"Мир здоровья\" Колпино","196657, г. Санкт-Петербург, г. Колпино, ул. Веры Слуцкой, д.1"]
["20122","ФГБУ \"ФЦСКЭ им. В.А. Алмазова\" Минздрава России г. Санкт-Петербург","197341, г. Санкт-Петербург, ул. Аккуратова, д.2"]
["20435","ООО \"Балтийский завод-Судостроение\"","199106, г. Санкт-Петербург, Косая линия., д.16, корп.лит. \"Б\""]
["2012","ООО \"Фирма Вероника ЛТД\" (Санкт-Петербург)","347661, г. Санкт-Петербург, 7-я линия., д.62 лит.А"]
["20447","Клиника СМТ(ЗАО \"Поликлинический комплекс\") на Римского-Корсакова, 87","197738, г. Санкт-Петербург, Римского-Корсакова пр-кт., д.87"]
["20436","МЦ «Юнион Клиник». Санкт-Петербург","196620, г. Санкт-Петербург, Средний пр-кт., д.79, корп.2"]
["20436","ООО «Юнион Клиник». Санкт-Петербург","191119, г. Санкт-Петербург, ул. Марата, д.69-71, корп.лит.А"]
["20437","ООО \"Валаам МЕД\" Санкт-Петербург","191025, г. Санкт-Петербург, ул. Колокольная, д.13, корп.литА. пом3-Н"]
["20438","ООО\" ВалаАМ юг\" Санкт-Петербург ","г. Санкт-Петербург, Ветеранов пр-кт., д.122, корп.корп.лит.А, пом.100-Н"]
["20439","ООО \"Морской Медицинский центр\" Санкт-Петербург","198035, г. Санкт-Петербург, ул. Межевой Канал, д.5, корп.литер АХ."]
["20250","ООО \"АПОЛЛОНИЯ ДЕНТАЛ КЛИНИК\" Санкт-Петербург","196140, г. Санкт-Петербург, ул. Ропшинская, д.18"]
["2050","ООО \"Медицинский центр \"Одонт\" г.Санкт-Петербург","197110, г. Санкт-Петербург, Морской пр-кт., д.д.7 лит. А НЕТ ТЕРРИТ.ОТДЕЛЕНИЯ"]
["2050","ООО  \"Приор\" Ас-стом г.Санкт-Петербург","196655, г. Санкт-Петербург, Просвещения пр-кт., д.21"]
["2050","ООО \"Медицинский центр \"Одонт\" г.Санкт-Петербург","196657, г. Санкт-Петербург, Художников пр-кт., д.33, корп.4"]
["2050","ООО  \"Приор\" Ас-стом  г.Санкт-Петербург","196655, г. Санкт-Петербург, Просвещения пр-кт., д.72"]
["2050","ООО  \"Приор\" Ас-стом г.Санкт-Петербург. НЕТ ТЕРРИТ.ОТДЕЛЕНИЯ","198515, г. Санкт-Петербург, Комендантский пр-кт., д.17, корп.1"]
["2050","ООО  \"Приор\" Ас-стом г.Санкт-Петербург","196601, г. Санкт-Петербург, Авиаконструкторов пр-кт., д.10"]
["2050","ООО  \"Приор\" Ас-стом  г.Санкт-Петербург. НЕТ ТЕРРИТ.ОТДЕЛЕНИЯ","198218, г. Санкт-Петербург, Литейный пр-кт., д.59"]
["2050","ООО  \"Приор\" Ас-стом. г.Санкт-Петербург.НЕТ ТЕРРИТ.ОТДЕЛЕНИЯ","191014, г. Санкт-Петербург, ул. Фонтанная, д.3"]
["20018","ООО \"Голливуд Дент\" г. Санкт-Петербург","197373, г. Санкт-Петербург, Шуваловский пр-кт., д.72, корп. 1 литер А, пом. 1Н"]
["20018","ООО \"Дента\" г. Санкт-Петербург","196620, г. Санкт-Петербург, Шлиссельбургский пр-кт., д.1"]
["20018","ООО \"Аркадия\" г. Санкт-Петербург","190013, г. Санкт-Петербург, Загородный пр-кт., д.21-23, корп.лит.А"]
["20018","ООО \"Медика\" г. Санкт-Петербург","194362, г. Санкт-Петербург, ул. Ломоносова, д.26"]
["20455","ООО Азбука Здоровья","г. Санкт-Петербург, Невский пр-кт., д.100"]
["20456","ООО \"Солди-Мед\"  Санкт-Петербург","198218, г. Санкт-Петербург, ул. Композиторов, д.22, корп.2"]
["2029","ООО \"ЛДЦ МИБС им. Березина\"  г.Санкт-Петербург","197720, г. Санкт-Петербург, ул. Есенина, д.2, корп.3 литер А"]
["2029","ООО \"ЛДЦ МИБС им. Березина\"  г.Санкт-Петербург","197758, г. Санкт-Петербург, п. Песочный, ул. Карла Маркса, д.43, корп.лит.А"]
["2029","ООО \"ЛДЦ МИБС им. Березина\"  г.Санкт-Петербург","625014, Тюменская обл., г. Тюмень, ул. Магнитогорская, д.8, корп.2"]
["2029","ООО \"ЛДЦ МИБС им. Березина\"  г.Санкт-Петербург","646710, Оренбургская обл., г. Оренбург, ул. Комсомольская, д.202"]
["20464","ООО \"ГПЦ ПАКС\"","197198, г. Санкт-Петербург, Добролюбова пр-кт., д.27А"]
["2035","ЗАО \"Меди\" г. Санкт-Петербург","193015, г. Санкт-Петербург, Суворовский пр-кт., д.57, корп.лит. А, пом. 9Н"]
["2042","АНО \"Медицинский центр\"  XXI век\" г. Санкт-Петербург","199155, г. Санкт-Петербург, Кима пр-кт., д.28"]
["2042","АНО \"Медицинский центр\"  XXI век\" г. Санкт-Петербург","190121, г. Санкт-Петербург, ул. Пограничника Гарькавого, д.15"]
["2072","ФГБУ ВЦЭРМ им. А.М. Никифорова МЧС России г. Санкт-Петербург","197374, г. Санкт-Петербург, ул. Оптиков, д.54, корп.лит А"]
["20431","ООО \"Немецкая клиника\"  Санкт-Петербург","194294, г. Санкт-Петербург, Чернышевского пл., д.11, часть пом.4Н "]
["2050","ООО  \"Приор\" Ас-стом  г.Санкт-Петербург","г. Санкт-Петербург, Гражданский пр-кт., д.114, корп.1"]
["20458","СПб ГБУЗ \"Городская поликлиника № 44\" Санкт-Петербург","192212, г. Санкт-Петербург, ул. Турку, д.5, корп.13"]
["2050","ООО \"София\" г.Санкт-Петербург","190005, г. Санкт-Петербург, ул. Красноармейская 5-я, д.1"]
["2050","ООО \" Азбука Здоровья\" \" г.Санкт-Петербург","191186, г. Санкт-Петербург, ул. Малая Морская, д.7, лит.А, пом 1-Н"]
["20446","ООО \"Рэмси Диагностика Рус\"","194156, г. Санкт-Петербург, ул. Чапаева, д.5, корп.лит.А. пом 7Н"]
["20431","ООО \"Немецкая клиника\"  Санкт-Петербург","г. Санкт-Петербург, ул. Варшавская, д.23, корп.1"]
["20432"," Медицинский центр ПГУПС  Санкт-Петербург","190031, г. Санкт-Петербург, Московский пр-кт., д.9"]
["2050","\"GSMED\"","188512, г. Санкт-Петербург, Тореза пр-кт., д.44, корп.2 офис 15-Н"]
["2050","\"МедЛайн\" ","г. Санкт-Петербург, ул. Гжатская, д.5, корп.3"]
["2050","ООО \"Медицинский центр \"Одонт\" г.Санкт-Петербург","196655, г. Санкт-Петербург, Богатырский пр-кт., д.36/1"]